Body Name,ONS SNAC ID,Pay Date,Transaction No,Amount �,Supplier Name,Company Registration No,Department,Account Name,CIPFA Service Reporting
Swale Borough Council,29UM,02/01/2019,1164513,598.00,ACORN MAINTENANCE SERVICES,3546898                  ,HOUSING SERVICES,Staying Put small repairs (contractors),Housing
Swale Borough Council,29UM,02/01/2019,1164411,128.67,ALLSTAR BUSINESS SOLUTIONS LTD - (DT),1073098                  ,SERVICE DELIVERY,Petrol/Derv & Oil,Cultural and Related Services
Swale Borough Council,29UM,02/01/2019,1164411,382.78,ALLSTAR BUSINESS SOLUTIONS LTD - (DT),1073098                  ,ENVIRONMENTAL RESPONSE TEAM,Fuel For Contract Vehicles,Internal Trading Cost Centres
Swale Borough Council,29UM,02/01/2019,1164411,72.91,ALLSTAR BUSINESS SOLUTIONS LTD - (DT),1073098                  ,LEISURE & OPEN SPACES,Fuel For Contract Vehicles,Cultural and Related Services
Swale Borough Council,29UM,02/01/2019,1164411,56.11,ALLSTAR BUSINESS SOLUTIONS LTD - (DT),1073098                  ,ENVIRONMENTAL RESPONSE TEAM,Fuel For Contract Vehicles,Environmental and Regulatory Services
Swale Borough Council,29UM,02/01/2019,1164170,1106.35,B W MAY AND SON LTD,1016572                  ,PLANNING SERVICES,Private Contractors - CIS,Planning and Development Services
Swale Borough Council,29UM,02/01/2019,1164170,221.27,B W MAY AND SON LTD,1016572                  ,PLANNING SERVICES,Private Contractors - CIS,Planning and Development Services
Swale Borough Council,29UM,02/01/2019,1163927,677.58,BLENWOOD LTD,4383277                  ,CONTRACT & PROCUREMENT,"Clearance Of Sites,Tyres Etc",Environmental and Regulatory Services
Swale Borough Council,29UM,02/01/2019,1163978,3200.67,BLENWOOD LTD,4383277                  ,LEISURE & OPEN SPACES,Grounds Maint Suspense,Cultural and Related Services
Swale Borough Council,29UM,02/01/2019,1164157,2826.35,BLENWOOD LTD,4383277                  ,LEISURE & OPEN SPACES,Maintenance - Grounds Contract,Cultural and Related Services
Swale Borough Council,29UM,02/01/2019,1164530,3200.67,BLENWOOD LTD,4383277                  ,LEISURE & OPEN SPACES,Grounds Maint Suspense,Cultural and Related Services
Swale Borough Council,29UM,02/01/2019,1164540,281.90,BLENWOOD LTD,4383277                  ,LEISURE & OPEN SPACES,Maintenance - Grounds,Environmental and Regulatory Services
Swale Borough Council,29UM,02/01/2019,1164542,643.60,BLENWOOD LTD,4383277                  ,LEISURE & OPEN SPACES,Grounds Contract Variations,Cultural and Related Services
Swale Borough Council,29UM,02/01/2019,1164543,299.03,BLENWOOD LTD,4383277                  ,LEISURE & OPEN SPACES,Maintenance - Grounds,Environmental and Regulatory Services
Swale Borough Council,29UM,02/01/2019,1164470,7843.68,BLOOM PROCUREMENT SERVICES LTD,08045123                 ,PLANNING SERVICES,Fees and Services,Planning and Development Services
Swale Borough Council,29UM,02/01/2019,1164589,1044.00,BOURNES OF SITTINGBOURNE,                         ,MKS ENVIRONMENTAL SERVICES,Funeral Expenses,Environmental and Regulatory Services
Swale Borough Council,29UM,02/01/2019,1164515,1246.15,BROADWAY ESTATES,                         ,REVENUE SERVICES,KCC Relocation Scheme - Expenditure,Housing
Swale Borough Council,29UM,02/01/2019,1164515,1246.15,BROADWAY ESTATES,                         ,REVENUE SERVICES,KCC Relocation Scheme - Expenditure,Housing
Swale Borough Council,29UM,02/01/2019,1164365,550.00,CONTENTIVE LIMITED,08275348                 ,FINANCIAL SERVICES,Recruitment Adverts - Staff,Internal Trading Cost Centres
Swale Borough Council,29UM,02/01/2019,1164465,1750.00,DAVID HUSKISSON ASSOCIATES LIMITED,2797095                  ,PLANNING SERVICES,Fees and Services,Planning and Development Services
Swale Borough Council,29UM,02/01/2019,1164572,522.79,ELECTORAL REFORM SERVICES,2263092                  ,DEMOCRATIC & ELECTORAL SERVICES,Fees and Services,Central Services to the Public
Swale Borough Council,29UM,02/01/2019,1164123,2250.00,FIRST STOP HOUSING SOLUTION LTD,                         ,HOUSING SERVICES,NL (Nightly Lets) - Homelessness Landlord Payments,Housing
Swale Borough Council,29UM,02/01/2019,1163900,450.00,GOODWIN PEST MANAGEMENT,                         ,HOUSING SERVICES,Rechargeable Environ Works,Housing
Swale Borough Council,29UM,02/01/2019,1164399,11692.00,GRANT THORNTON UK LLP,                         ,DIRECTOR OF CORPORATE SERVICES,External Audit Fee,Corporate & Democratic Core
Swale Borough Council,29UM,02/01/2019,1164461,2600.00,HISTORICAL RESEARCH GRP OF S'BOURNE,                         ,ECONOMY & COMMUNITIES,Grants & Subscriptions,Central Services to the Public
Swale Borough Council,29UM,02/01/2019,1164514,356.00,HUBBARD & HOUGHTON CONSTRUCTION LTD,                         ,HOUSING SERVICES,Staying Put small repairs (contractors),Housing
Swale Borough Council,29UM,02/01/2019,1164500,1880.00,INFORM CPI LTD,                         ,REVENUE SERVICES,NNDR Additional Rateable Values,Central Services to the Public
Swale Borough Council,29UM,02/01/2019,1164548,2340.00,INFORM CPI LTD,                         ,REVENUE SERVICES,NNDR Additional Rateable Values,Central Services to the Public
Swale Borough Council,29UM,02/01/2019,1164412,4138.00,KENT COUNTY COUNCIL,                         ,PLANNING SERVICES,Fees and Services,Planning and Development Services
Swale Borough Council,29UM,02/01/2019,1164367,4144.22,KENT COUNTY COUNCIL (KCS),                         ,PROPERTY SERVICES,Electricity,Corporate & Democratic Core
Swale Borough Council,29UM,02/01/2019,1164357,250.00,LEMAR LIMITED,04350292                 ,CAR PARKS,Maintenance - Grounds,Highway and Transport Services
Swale Borough Council,29UM,02/01/2019,1164357,700.00,LEMAR LIMITED,04350292                 ,CAR PARKS,Maintenance - Grounds,Highway and Transport Services
Swale Borough Council,29UM,02/01/2019,1164358,300.00,LEMAR LIMITED,04350292                 ,CAR PARKS,Maintenance - Grounds,Highway and Transport Services
Swale Borough Council,29UM,02/01/2019,1164358,350.00,LEMAR LIMITED,04350292                 ,CAR PARKS,Maintenance - Grounds,Highway and Transport Services
Swale Borough Council,29UM,02/01/2019,1164497,150.00,LEMAR LIMITED,04350292                 ,SERVICE DELIVERY,Private Contractors - CIS,Highway and Transport Services
Swale Borough Council,29UM,02/01/2019,1164497,100.00,LEMAR LIMITED,04350292                 ,SERVICE DELIVERY,Private Contractors - CIS,Highway and Transport Services
Swale Borough Council,29UM,02/01/2019,1164499,300.00,LEMAR LIMITED,04350292                 ,CAR PARKS,Maintenance - Grounds,Highway and Transport Services
Swale Borough Council,29UM,02/01/2019,1164499,350.00,LEMAR LIMITED,04350292                 ,CAR PARKS,Maintenance - Grounds,Highway and Transport Services
Swale Borough Council,29UM,02/01/2019,1164547,330.00,LEWES DISTRICT COUNCIL,                         ,DEMOCRATIC & ELECTORAL SERVICES,Grants & Subscriptions,Corporate & Democratic Core
Swale Borough Council,29UM,02/01/2019,1164126,408.00,LILAC ESTATES,                         ,HOUSING SERVICES,B & B - Homelessness Landlord Payments,Housing
Swale Borough Council,29UM,02/01/2019,1164127,534.00,LILAC ESTATES,                         ,HOUSING SERVICES,B & B - Homelessness Landlord Payments,Housing
Swale Borough Council,29UM,02/01/2019,1164445,1346.87,LLOYDS BANK - (DT),                         ,FINANCIAL SERVICES,Bank Charges,Corporate & Democratic Core
Swale Borough Council,29UM,02/01/2019,1164604,273.00,M.T.S. CLEANSING SERVICES LTD,2045340                  ,LEISURE & OPEN SPACES,Clearing Cesspools,Cultural and Related Services
Swale Borough Council,29UM,02/01/2019,1164107,1041.00,MAGEES GUESTHOUSE,                         ,HOUSING SERVICES,B & B - Homelessness Landlord Payments,Housing
Swale Borough Council,29UM,02/01/2019,1164270,918.00,MAGEES GUESTHOUSE,                         ,HOUSING SERVICES,B & B - Homelessness Landlord Payments,Housing
Swale Borough Council,29UM,02/01/2019,1164441,1349.00,MAGEES GUESTHOUSE,                         ,HOUSING SERVICES,B & B - Homelessness Landlord Payments,Housing
Swale Borough Council,29UM,02/01/2019,1164527,348.00,MAIDSTONE & MID KENT MIND,1167328                  ,COMMUNITY SAFETY,Fees and Services,Environmental and Regulatory Services
Swale Borough Council,29UM,02/01/2019,1164014,300.00,MAIDSTONE BOROUGH COUNCIL,                         ,CONTRACT & PROCUREMENT,Variations To Contract,Environmental and Regulatory Services
Swale Borough Council,29UM,02/01/2019,1164014,1557.66,MAIDSTONE BOROUGH COUNCIL,                         ,CONTRACT & PROCUREMENT,"Clearance Of Waste,Fly Tipping",Environmental and Regulatory Services
Swale Borough Council,29UM,02/01/2019,1164068,62024.63,MAIDSTONE BOROUGH COUNCIL,                         ,HUMAN RESOURCES,MKS Charges for HR Service,Internal Trading Cost Centres
Swale Borough Council,29UM,02/01/2019,1164602,842.00,MAYLOW CONSTRUCTION LTD,                         ,LEISURE & OPEN SPACES,Maintenance - Grounds,Environmental and Regulatory Services
Swale Borough Council,29UM,02/01/2019,1164020,1112.00,MEDWAY ACCOMMODATION LIMITED,                         ,HOUSING SERVICES,B & B - Homelessness Landlord Payments,Housing
Swale Borough Council,29UM,02/01/2019,1164020,231.67,MEDWAY ACCOMMODATION LIMITED,                         ,HOUSING SERVICES,B & B - Homelessness Landlord Payments,Housing
Swale Borough Council,29UM,02/01/2019,1164182,880.00,MEDWAY ACCOMMODATION LIMITED,                         ,HOUSING SERVICES,B & B - Homelessness Landlord Payments,Housing
Swale Borough Council,29UM,02/01/2019,1164182,183.33,MEDWAY ACCOMMODATION LIMITED,                         ,HOUSING SERVICES,B & B - Homelessness Landlord Payments,Housing
Swale Borough Council,29UM,02/01/2019,1164407,636.00,MEDWAY ACCOMMODATION LIMITED,                         ,HOUSING SERVICES,B & B - Homelessness Landlord Payments,Housing
Swale Borough Council,29UM,02/01/2019,1164407,132.50,MEDWAY ACCOMMODATION LIMITED,                         ,HOUSING SERVICES,B & B - Homelessness Landlord Payments,Housing
Swale Borough Council,29UM,02/01/2019,1164579,420.00,MEDWAY ACCOMMODATION LIMITED,                         ,HOUSING SERVICES,B & B - Homelessness Landlord Payments,Housing
Swale Borough Council,29UM,02/01/2019,1164579,87.50,MEDWAY ACCOMMODATION LIMITED,                         ,HOUSING SERVICES,B & B - Homelessness Landlord Payments,Housing
Swale Borough Council,29UM,02/01/2019,1164496,250.00,MR J W GATES,                         ,LEISURE & OPEN SPACES,Maintenance - Grounds,Cultural and Related Services
Swale Borough Council,29UM,02/01/2019,1164496,59.62,MR J W GATES,                         ,LEISURE & OPEN SPACES,Maintenance - Grounds,Cultural and Related Services
Swale Borough Council,29UM,02/01/2019,1164018,1036.00,REDACTED PERSONAL INFORMATION,                         ,HOUSING SERVICES,B & B - Homelessness Landlord Payments,Housing
Swale Borough Council,29UM,02/01/2019,1164019,826.00,REDACTED PERSONAL INFORMATION,                         ,HOUSING SERVICES,B & B - Homelessness Landlord Payments,Housing
Swale Borough Council,29UM,02/01/2019,1164121,966.00,REDACTED PERSONAL INFORMATION,                         ,HOUSING SERVICES,B & B - Homelessness Landlord Payments,Housing
Swale Borough Council,29UM,02/01/2019,1164184,966.00,REDACTED PERSONAL INFORMATION,                         ,HOUSING SERVICES,B & B - Homelessness Landlord Payments,Housing
Swale Borough Council,29UM,02/01/2019,1164406,641.00,REDACTED PERSONAL INFORMATION,                         ,HOUSING SERVICES,B & B - Homelessness Landlord Payments,Housing
Swale Borough Council,29UM,02/01/2019,1164578,756.00,REDACTED PERSONAL INFORMATION,                         ,HOUSING SERVICES,B & B - Homelessness Landlord Payments,Housing
Swale Borough Council,29UM,02/01/2019,1164592,529.50,NEW LEAF SUPPORT LTD,                         ,HOUSING SERVICES,NL (Nightly Lets) - Homelessness Landlord Payments,Housing
Swale Borough Council,29UM,02/01/2019,1164460,480.00,NEWINGTON VILLAGE HALL,                         ,ECONOMY & COMMUNITIES,Grants & Subscriptions,Central Services to the Public
Swale Borough Council,29UM,02/01/2019,1164425,1700.00,OBSIDIAN SECURITY LTD,                         ,PROPERTY SERVICES,Buildings Maintenance,Corporate & Democratic Core
Swale Borough Council,29UM,02/01/2019,1164564,290.33,PORTAKABIN LIMITED,685303                   ,LEISURE & OPEN SPACES,Maintenance - Grounds,Environmental and Regulatory Services
Swale Borough Council,29UM,02/01/2019,1164389,323.50,PREMIER PAPER GROUP LTD,                         ,PROPERTY SERVICES,Paper,Internal Trading Cost Centres
Swale Borough Council,29UM,02/01/2019,1164133,2094.00,REARDON PROPERTIES,                         ,HOUSING SERVICES,NL (Nightly Lets) - Homelessness Landlord Payments,Housing
Swale Borough Council,29UM,02/01/2019,1164134,1806.00,REARDON PROPERTIES,                         ,HOUSING SERVICES,NL (Nightly Lets) - Homelessness Landlord Payments,Housing
Swale Borough Council,29UM,02/01/2019,1164135,1918.00,REARDON PROPERTIES,                         ,HOUSING SERVICES,NL (Nightly Lets) - Homelessness Landlord Payments,Housing
Swale Borough Council,29UM,02/01/2019,1164136,1918.00,REARDON PROPERTIES,                         ,HOUSING SERVICES,NL (Nightly Lets) - Homelessness Landlord Payments,Housing
Swale Borough Council,29UM,02/01/2019,1164532,2348.72,SCOTTISH WATER BUSINESS STREAM LTD,SC294924                 ,CONTRACT & PROCUREMENT,Water - Metered,Environmental and Regulatory Services
Swale Borough Council,29UM,02/01/2019,1164300,6200.10,SHARPE PRITCHARD,OC378650                 ,DIRECTOR OF REGENERATION,Fees and Services,Internal Trading Cost Centres
Swale Borough Council,29UM,02/01/2019,1164300,110.00,SHARPE PRITCHARD,OC378650                 ,DIRECTOR OF REGENERATION,Fees and Services,Internal Trading Cost Centres
Swale Borough Council,29UM,02/01/2019,1164301,17850.82,SHARPE PRITCHARD,OC378650                 ,DIRECTOR OF REGENERATION,Fees and Services,Internal Trading Cost Centres
Swale Borough Council,29UM,02/01/2019,1164302,10386.00,SHARPE PRITCHARD,OC378650                 ,DIRECTOR OF REGENERATION,Fees and Services,Internal Trading Cost Centres
Swale Borough Council,29UM,02/01/2019,1164069,434.16,SOUTHERN WATER SERVICES LIMITED,2366670                  ,HOUSING SERVICES,Water - Rateable Value,Housing
Swale Borough Council,29UM,02/01/2019,1164169,281.39,SOUTHERN WATER SERVICES LIMITED,2366670                  ,HOUSING SERVICES,Water - Rateable Value,Housing
Swale Borough Council,29UM,02/01/2019,1164507,1672.00,THE OYSTER PARTNERSHIP,05020374                 ,PLANNING SERVICES,Agency/Contract Staff,Planning and Development Services
Swale Borough Council,29UM,02/01/2019,1164274,1230.00,TRAFALGAR TAVERN LTD,07999329                 ,HOUSING SERVICES,B & B - Homelessness Landlord Payments,Housing
Swale Borough Council,29UM,02/01/2019,1164401,1410.00,TRAFALGAR TAVERN LTD,07999329                 ,HOUSING SERVICES,B & B - Homelessness Landlord Payments,Housing
Swale Borough Council,29UM,02/01/2019,1164353,169.98,TUNBRIDGE WELLS BOROUGH COUNCIL,                         ,MKS ENVIRONMENTAL SERVICES,MKS Charges for Environmental Services,Internal Trading Cost Centres
Swale Borough Council,29UM,02/01/2019,1164353,10230.35,TUNBRIDGE WELLS BOROUGH COUNCIL,                         ,MKS ENVIRONMENTAL SERVICES,MKS Charges for Environmental Services,Internal Trading Cost Centres
Swale Borough Council,29UM,02/01/2019,1164353,42716.94,TUNBRIDGE WELLS BOROUGH COUNCIL,                         ,MKS ENVIRONMENTAL SERVICES,MKS Charges for Environmental Services,Internal Trading Cost Centres
Swale Borough Council,29UM,02/01/2019,1164353,61820.38,TUNBRIDGE WELLS BOROUGH COUNCIL,                         ,MKS ENVIRONMENTAL SERVICES,MKS Charges for Environmental Services,Internal Trading Cost Centres
Swale Borough Council,29UM,02/01/2019,1164459,580.99,UPCHURCH PARISH COUNCIL,                         ,TOURISM & SPORTS DEVELOPMENT,Grants & Subscriptions,Cultural and Related Services
Swale Borough Council,29UM,02/01/2019,1164525,1685.63,VIVID RESOURCING LIMITED,06459262                 ,PLANNING SERVICES,Agency/Contract Staff,Internal Trading Cost Centres
Swale Borough Council,29UM,02/01/2019,1164534,28.17,VR SANI-CO LTD,3588359                  ,LEISURE & OPEN SPACES,Service Contracts,Cultural and Related Services
Swale Borough Council,29UM,02/01/2019,1164534,23.84,VR SANI-CO LTD,3588359                  ,LEISURE & OPEN SPACES,Service Contracts,Cultural and Related Services
Swale Borough Council,29UM,02/01/2019,1164534,12.50,VR SANI-CO LTD,3588359                  ,LEISURE & OPEN SPACES,Service Contracts,Cultural and Related Services
Swale Borough Council,29UM,02/01/2019,1164534,35.76,VR SANI-CO LTD,3588359                  ,PROPERTY SERVICES,Service Contracts,Cultural and Related Services
Swale Borough Council,29UM,02/01/2019,1164534,5.96,VR SANI-CO LTD,3588359                  ,COMMUNITY SAFETY,Service Contracts,Cultural and Related Services
Swale Borough Council,29UM,02/01/2019,1164534,214.56,VR SANI-CO LTD,3588359                  ,PROPERTY SERVICES,Service Contracts,Corporate & Democratic Core
Swale Borough Council,29UM,02/01/2019,1164534,14.08,VR SANI-CO LTD,3588359                  ,PROPERTY SERVICES,Service Contracts,Corporate & Democratic Core
Swale Borough Council,29UM,02/01/2019,1164534,26.00,VR SANI-CO LTD,3588359                  ,PROPERTY SERVICES,Service Contracts,Corporate & Democratic Core
Swale Borough Council,29UM,02/01/2019,1164534,50.00,VR SANI-CO LTD,3588359                  ,PROPERTY SERVICES,Service Contracts,Corporate & Democratic Core
Swale Borough Council,29UM,02/01/2019,1164534,9.75,VR SANI-CO LTD,3588359                  ,PROPERTY SERVICES,Service Contracts,Corporate & Democratic Core
Swale Borough Council,29UM,02/01/2019,1164534,16.32,VR SANI-CO LTD,3588359                  ,PROPERTY SERVICES,Service Contracts,Corporate & Democratic Core
Swale Borough Council,29UM,02/01/2019,1164211,406.93,WHISTL UK LIMITED,04417047                 ,REVENUE SERVICES,Postage,Central Services to the Public
Swale Borough Council,29UM,02/01/2019,1164211,203.46,WHISTL UK LIMITED,04417047                 ,REVENUE SERVICES,Postage,Housing
Swale Borough Council,29UM,02/01/2019,1164211,8.20,WHISTL UK LIMITED,04417047                 ,CAR PARKS,Postage,Internal Trading Cost Centres
Swale Borough Council,29UM,02/01/2019,1164211,112.96,WHISTL UK LIMITED,04417047                 ,PROPERTY SERVICES,Postage,Holding Codes
Swale Borough Council,29UM,02/01/2019,1164211,98.61,WHISTL UK LIMITED,04417047                 ,DEMOCRATIC & ELECTORAL SERVICES,Postage,Central Services to the Public
Swale Borough Council,29UM,02/01/2019,1164505,11750.00,WYNNE-WILLIAMS ASSOCIATES LTD,5148770                  ,LEISURE & OPEN SPACES,Capitalised Fees And Charges,Not used in this Structure
Swale Borough Council,29UM,02/01/2019,1164506,1572.00,WYNNE-WILLIAMS ASSOCIATES LTD,5148770                  ,LEISURE & OPEN SPACES,Capitalised Fees And Charges,Not used in this Structure
Swale Borough Council,29UM,09/01/2019,1164556,803.00,A T BLINDS,                         ,PROPERTY SERVICES,Buildings Maintenance,Corporate & Democratic Core
Swale Borough Council,29UM,09/01/2019,1164558,453.00,A T BLINDS,                         ,PROPERTY SERVICES,Buildings Maintenance,Corporate & Democratic Core
Swale Borough Council,29UM,09/01/2019,1164723,2390.00,ALLPAY LTD,02933191                 ,REVENUE SERVICES,Bank Charges Pay Point,Central Services to the Public
Swale Borough Council,29UM,09/01/2019,1164723,32.30,ALLPAY LTD,02933191                 ,REVENUE SERVICES,Bank Charges Pay Point,Housing
Swale Borough Council,29UM,09/01/2019,1164723,24.00,ALLPAY LTD,02933191                 ,EXCHEQUER,Bank Charges Pay Point,Internal Trading Cost Centres
Swale Borough Council,29UM,09/01/2019,1164629,30.38,ALLSTAR BUSINESS SOLUTIONS LTD - (DT),1073098                  ,DEMOCRATIC & ELECTORAL SERVICES,Petrol/Derv & Oil,Corporate & Democratic Core
Swale Borough Council,29UM,09/01/2019,1164629,134.84,ALLSTAR BUSINESS SOLUTIONS LTD - (DT),1073098                  ,SERVICE DELIVERY,Petrol/Derv & Oil,Cultural and Related Services
Swale Borough Council,29UM,09/01/2019,1164629,257.73,ALLSTAR BUSINESS SOLUTIONS LTD - (DT),1073098                  ,ENVIRONMENTAL RESPONSE TEAM,Fuel For Contract Vehicles,Internal Trading Cost Centres
Swale Borough Council,29UM,09/01/2019,1164629,61.23,ALLSTAR BUSINESS SOLUTIONS LTD - (DT),1073098                  ,LEISURE & OPEN SPACES,Fuel For Contract Vehicles,Cultural and Related Services
Swale Borough Council,29UM,09/01/2019,1164641,12588.63,APCOA PARKING (UK) LTD,2572947                  ,CAR PARKS,Private Contractors,Highway and Transport Services
Swale Borough Council,29UM,09/01/2019,1164641,18882.95,APCOA PARKING (UK) LTD,2572947                  ,CAR PARKS,Private Contractors,Highway and Transport Services
Swale Borough Council,29UM,09/01/2019,1164795,4885.00,ASCENDIT LIFTS LTD,3493530                  ,HOUSING SERVICES,Housing Renovation Grants,Not used in this Structure
Swale Borough Council,29UM,09/01/2019,1164667,300.00,ASPIRATIONS,                         ,ECONOMY & COMMUNITIES,Grants & Subscriptions,Central Services to the Public
Swale Borough Council,29UM,09/01/2019,1164766,625.00,ASSOC. OF TOWN CENTRE MANAGEMENT,                         ,ECONOMIC DEVELOPMENT,Fees and Services,Planning and Development Services
Swale Borough Council,29UM,09/01/2019,1164721,884.40,ATLAS FACILITIES MANAGEMENT LTD,05572730                 ,PROPERTY SERVICES,Fees and Services,Trading Undertaking
Swale Borough Council,29UM,09/01/2019,1163979,102846.35,BLENWOOD LTD,4383277                  ,LEISURE & OPEN SPACES,Grounds Maint Suspense,Cultural and Related Services
Swale Borough Council,29UM,09/01/2019,1164531,102846.35,BLENWOOD LTD,4383277                  ,LEISURE & OPEN SPACES,Grounds Maint Suspense,Cultural and Related Services
Swale Borough Council,29UM,09/01/2019,1164569,480.00,BLOOM PROCUREMENT SERVICES LTD,08045123                 ,FINANCIAL SERVICES,STC - Capitalised Fees And Charges,Not used in this Structure
Swale Borough Council,29UM,09/01/2019,1164569,1920.00,BLOOM PROCUREMENT SERVICES LTD,08045123                 ,FINANCIAL SERVICES,STC - Capitalised Fees And Charges,Not used in this Structure
Swale Borough Council,29UM,09/01/2019,1164593,1200.00,BLOOM PROCUREMENT SERVICES LTD,08045123                 ,FINANCIAL SERVICES,STC - Capitalised Fees And Charges,Not used in this Structure
Swale Borough Council,29UM,09/01/2019,1164593,1200.00,BLOOM PROCUREMENT SERVICES LTD,08045123                 ,FINANCIAL SERVICES,STC - Capitalised Fees And Charges,Not used in this Structure
Swale Borough Council,29UM,09/01/2019,1164594,7313.40,BLOOM PROCUREMENT SERVICES LTD,08045123                 ,PLANNING SERVICES,Fees and Services,Planning and Development Services
Swale Borough Council,29UM,09/01/2019,1164816,3266.36,BROADWAY ESTATES,                         ,REVENUE SERVICES,KCC Relocation Scheme - Expenditure,Housing
Swale Borough Council,29UM,09/01/2019,1164546,273.00,CASEMENT SIGNS & GRAPHICS,                         ,CAR PARKS,Road Lining,Highway and Transport Services
Swale Borough Council,29UM,09/01/2019,1164577,737.75,CASEMENT SIGNS & GRAPHICS,                         ,CAR PARKS,Road Lining,Highway and Transport Services
Swale Borough Council,29UM,09/01/2019,1164658,26537.00,CIVICA UK LIMITED,1628868                  ,REVENUE SERVICES,Computer Equipment & Materials,Housing
Swale Borough Council,29UM,09/01/2019,1164797,5373.68,COLDWELL CONSTRUCTION LTD,4814340                  ,HOUSING SERVICES,Housing Renovation Grants,Not used in this Structure
Swale Borough Council,29UM,09/01/2019,1164701,5310.00,COMPLETE IT SYSTEMS LTD,06224858                 ,MKS ICT,Computer Equipment,Not used in this Structure
Swale Borough Council,29UM,09/01/2019,1164571,1600.00,CROFTON DESIGN (KENT) LTD,4081318                  ,PROPERTY SERVICES,Consultancy/Specialist Advice,Internal Trading Cost Centres
Swale Borough Council,29UM,09/01/2019,1164720,6500.00,CUSHMAN & WAKEFIELD DEBENHAM T L LTD,2757768                  ,PROPERTY SERVICES,Fees and Services,Trading Undertaking
Swale Borough Council,29UM,09/01/2019,1164466,3500.00,DAVID HUSKISSON ASSOCIATES LIMITED,2797095                  ,PLANNING SERVICES,Fees and Services,Planning and Development Services
Swale Borough Council,29UM,09/01/2019,1164785,4860.61,DAYTRAD LIMITED,7654373                  ,HOUSING SERVICES,Housing Renovation Grants,Not used in this Structure
Swale Borough Council,29UM,09/01/2019,1164786,6956.34,DAYTRAD LIMITED,7654373                  ,HOUSING SERVICES,Housing Renovation Grants,Not used in this Structure
Swale Borough Council,29UM,09/01/2019,1164793,500.00,DOLPHIN STAIRLIFTS (KENT),04181846                 ,HOUSING SERVICES,Housing Renovation Grants,Not used in this Structure
Swale Borough Council,29UM,09/01/2019,1164794,5100.00,DOLPHIN STAIRLIFTS (KENT),04181846                 ,HOUSING SERVICES,Housing Renovation Grants,Not used in this Structure
Swale Borough Council,29UM,09/01/2019,1164537,20000.00,FAVERSHAM SWIMMING POOL MNGMT COMM LTD,                         ,LEISURE & OPEN SPACES,Grants & Subscriptions,Cultural and Related Services
Swale Borough Council,29UM,09/01/2019,1164508,1215.00,GATES RAILINGS LTD,10805179                 ,LEISURE & OPEN SPACES,Buildings Maintenance,Environmental and Regulatory Services
Swale Borough Council,29UM,09/01/2019,1164699,816.50,GEN2 PROPERTY LIMITED,09834851                 ,PROPERTY SERVICES,Consultancy/Specialist Advice,Internal Trading Cost Centres
Swale Borough Council,29UM,09/01/2019,1164796,3567.75,GREENS GROUNDWORK,                         ,HOUSING SERVICES,Housing Renovation Grants,Not used in this Structure
Swale Borough Council,29UM,09/01/2019,1164787,1429.85,HUBBARD & HOUGHTON CONSTRUCTION LTD,                         ,HOUSING SERVICES,Housing Renovation Grants,Not used in this Structure
Swale Borough Council,29UM,09/01/2019,1164788,1540.55,HUBBARD & HOUGHTON CONSTRUCTION LTD,                         ,HOUSING SERVICES,Housing Renovation Grants,Not used in this Structure
Swale Borough Council,29UM,09/01/2019,1164789,6922.31,HUBBARD & HOUGHTON CONSTRUCTION LTD,                         ,HOUSING SERVICES,Housing Renovation Grants,Not used in this Structure
Swale Borough Council,29UM,09/01/2019,1164684,786.80,IDOX SOFTWARE LTD,06706798                 ,DEMOCRATIC & ELECTORAL SERVICES,Fees and Services,Central Services to the Public
Swale Borough Council,29UM,09/01/2019,1164682,768.00,INFORM CPI LTD,                         ,REVENUE SERVICES,NNDR Additional Rateable Values,Central Services to the Public
Swale Borough Council,29UM,09/01/2019,1164705,560.00,INFORM CPI LTD,                         ,REVENUE SERVICES,NNDR Additional Rateable Values,Central Services to the Public
Swale Borough Council,29UM,09/01/2019,1164427,2775.00,INTEGRA ASSOCIATES LIMITED,03054901                 ,FINANCIAL SERVICES,Capitalised Fees And Charges,Not used in this Structure
Swale Borough Council,29UM,09/01/2019,1164790,5037.53,J & D SYSTEMS,                         ,HOUSING SERVICES,Housing Renovation Grants,Not used in this Structure
Swale Borough Council,29UM,09/01/2019,1164791,6325.00,J & D SYSTEMS,                         ,HOUSING SERVICES,Housing Renovation Grants,Not used in this Structure
Swale Borough Council,29UM,09/01/2019,1164792,6396.25,J & D SYSTEMS,                         ,HOUSING SERVICES,Housing Renovation Grants,Not used in this Structure
Swale Borough Council,29UM,09/01/2019,1164590,3285.00,KENT WILDLIFE TRUST,239992                   ,PLANNING SERVICES,Fees and Services,Planning and Development Services
Swale Borough Council,29UM,09/01/2019,1164584,500.00,LEMAR LIMITED,04350292                 ,LEISURE & OPEN SPACES,Maintenance - Grounds,Cultural and Related Services
Swale Borough Council,29UM,09/01/2019,1164584,1020.00,LEMAR LIMITED,04350292                 ,LEISURE & OPEN SPACES,Maintenance - Grounds,Cultural and Related Services
Swale Borough Council,29UM,09/01/2019,1164560,329.00,LOCAL GOVERNMENT ASSOCIATION,                         ,DEMOCRATIC & ELECTORAL SERVICES,Conference,Corporate & Democratic Core
Swale Borough Council,29UM,09/01/2019,1164616,284.12,LYRECO UK LTD,                         ,PLANNING SERVICES,Stationery,Internal Trading Cost Centres
Swale Borough Council,29UM,09/01/2019,1164636,75516.82,MAIDSTONE BOROUGH COUNCIL,                         ,CONTRACT & PROCUREMENT,Private Contractors,Environmental and Regulatory Services
Swale Borough Council,29UM,09/01/2019,1164636,208018.49,MAIDSTONE BOROUGH COUNCIL,                         ,CONTRACT & PROCUREMENT,Private Contractors,Environmental and Regulatory Services
Swale Borough Council,29UM,09/01/2019,1164636,-3503.24,MAIDSTONE BOROUGH COUNCIL,                         ,CONTRACT & PROCUREMENT,Private Contractors,Environmental and Regulatory Services
Swale Borough Council,29UM,09/01/2019,1164815,837086.00,MAIDSTONE BOROUGH COUNCIL - DT,                         ,FINANCIAL SERVICES,Tariff to Gvt,Taxation and Non-Specific Grant Income
Swale Borough Council,29UM,09/01/2019,1164197,9497.26,MATRIX SCM LTD,2227962                  ,HUMAN RESOURCES,Agency/Contract Staff,Internal Trading Cost Centres
Swale Borough Council,29UM,09/01/2019,1164415,11082.55,MATRIX SCM LTD,2227962                  ,HUMAN RESOURCES,Agency/Contract Staff,Internal Trading Cost Centres
Swale Borough Council,29UM,09/01/2019,1164526,12842.81,MATRIX SCM LTD,2227962                  ,HUMAN RESOURCES,Agency/Contract Staff,Internal Trading Cost Centres
Swale Borough Council,29UM,09/01/2019,1164688,7650.94,MATRIX SCM LTD,2227962                  ,HUMAN RESOURCES,Agency/Contract Staff,Internal Trading Cost Centres
Swale Borough Council,29UM,09/01/2019,1164623,1000.00,MEDWAY PUBLIC SERVICES LTD,10041989                 ,COMMUNITY SAFETY,CCTV Monitoring Service,Environmental and Regulatory Services
Swale Borough Council,29UM,09/01/2019,1164570,608.50,METRIC GROUP LTD,2560839                  ,CAR PARKS,Equipment Maintenance,Highway and Transport Services
Swale Borough Council,29UM,09/01/2019,1164648,680.00,METRIC GROUP LTD,2560839                  ,CAR PARKS,Fees - Licence,Highway and Transport Services
Swale Borough Council,29UM,09/01/2019,1164700,1585.00,METRIC GROUP LTD,2560839                  ,CAR PARKS,Maintenance - Grounds,Highway and Transport Services
Swale Borough Council,29UM,09/01/2019,1164735,8300.00,MIDKENT COLLEGE,                         ,ECONOMIC DEVELOPMENT,Fees and Services,Planning and Development Services
Swale Borough Council,29UM,09/01/2019,1164575,718.00,MILTON COURT PRIMARY ACADEMY,                         ,DEMOCRATIC & ELECTORAL SERVICES,Payments in Year,Ledger/Suspense Codes
Swale Borough Council,29UM,09/01/2019,1164633,17994.20,MONITOR CLEANING SERVICES LTD,02526388                 ,CONTRACT & PROCUREMENT,Private Contractors,Environmental and Regulatory Services
Swale Borough Council,29UM,09/01/2019,1164625,1223.14,MPS MARKETING SERVICES LIMITED,6360656                  ,DEMOCRATIC & ELECTORAL SERVICES,Fees and Services,Central Services to the Public
Swale Borough Council,29UM,09/01/2019,1164626,997.58,MPS MARKETING SERVICES LIMITED,6360656                  ,DEMOCRATIC & ELECTORAL SERVICES,Fees and Services,Central Services to the Public
Swale Borough Council,29UM,09/01/2019,1164229,7.50,O2 (UK) LTD,1743099                  ,COMMUNITY SAFETY,Cellphone,Environmental and Regulatory Services
Swale Borough Council,29UM,09/01/2019,1164229,7.50,O2 (UK) LTD,1743099                  ,PLANNING SERVICES,Cellphone,Planning and Development Services
Swale Borough Council,29UM,09/01/2019,1164229,7.50,O2 (UK) LTD,1743099                  ,ECONOMIC DEVELOPMENT,Cellphone,Planning and Development Services
Swale Borough Council,29UM,09/01/2019,1164229,17.50,O2 (UK) LTD,1743099                  ,EMERGENCY PLANNING,Cellphone,Central Services to the Public
Swale Borough Council,29UM,09/01/2019,1164229,16.50,O2 (UK) LTD,1743099                  ,SERVICE DELIVERY,Cellphone,Cultural and Related Services
Swale Borough Council,29UM,09/01/2019,1164229,36.76,O2 (UK) LTD,1743099                  ,HOUSING SERVICES,Cellphone,Housing
Swale Borough Council,29UM,09/01/2019,1164229,7.50,O2 (UK) LTD,1743099                  ,REVENUE SERVICES,Cellphone,Housing
Swale Borough Council,29UM,09/01/2019,1164229,7.50,O2 (UK) LTD,1743099                  ,SERVICE DELIVERY,Cellphone,Internal Trading Cost Centres
Swale Borough Council,29UM,09/01/2019,1164229,7.50,O2 (UK) LTD,1743099                  ,ECONOMY & COMMUNITIES,Cellphone,Internal Trading Cost Centres
Swale Borough Council,29UM,09/01/2019,1164229,15.00,O2 (UK) LTD,1743099                  ,TOURISM & SPORTS DEVELOPMENT,Cellphone,Internal Trading Cost Centres
Swale Borough Council,29UM,09/01/2019,1164229,13.00,O2 (UK) LTD,1743099                  ,ECONOMIC DEVELOPMENT,Cellphone,Internal Trading Cost Centres
Swale Borough Council,29UM,09/01/2019,1164229,75.05,O2 (UK) LTD,1743099                  ,PROPERTY SERVICES,Cellphone,Internal Trading Cost Centres
Swale Borough Council,29UM,09/01/2019,1164229,7.00,O2 (UK) LTD,1743099                  ,MKS ENVIRONMENTAL SERVICES,Cellphone,Internal Trading Cost Centres
Swale Borough Council,29UM,09/01/2019,1164229,67.50,O2 (UK) LTD,1743099                  ,CONTRACT & PROCUREMENT,Cellphone,Internal Trading Cost Centres
Swale Borough Council,29UM,09/01/2019,1164229,14.50,O2 (UK) LTD,1743099                  ,CHIEF EXECUTIVE,Cellphone,Internal Trading Cost Centres
Swale Borough Council,29UM,09/01/2019,1164229,45.00,O2 (UK) LTD,1743099                  ,LEISURE & OPEN SPACES,Cellphone,Internal Trading Cost Centres
Swale Borough Council,29UM,09/01/2019,1164229,77.28,O2 (UK) LTD,1743099                  ,ENVIRONMENTAL RESPONSE TEAM,Cellphone,Internal Trading Cost Centres
Swale Borough Council,29UM,09/01/2019,1164229,7.50,O2 (UK) LTD,1743099                  ,PLANNING SERVICES,Cellphone,Internal Trading Cost Centres
Swale Borough Council,29UM,09/01/2019,1164229,7.50,O2 (UK) LTD,1743099                  ,COMMUNICATIONS,Cellphone,Internal Trading Cost Centres
Swale Borough Council,29UM,09/01/2019,1164229,15.00,O2 (UK) LTD,1743099                  ,COMMISSIONING & CUSTOMER CONTACT,Cellphone,Internal Trading Cost Centres
Swale Borough Council,29UM,09/01/2019,1164229,7.50,O2 (UK) LTD,1743099                  ,DIRECTOR OF REGENERATION,Cellphone,Internal Trading Cost Centres
Swale Borough Council,29UM,09/01/2019,1164229,7.50,O2 (UK) LTD,1743099                  ,POLICY,Cellphone,Internal Trading Cost Centres
Swale Borough Council,29UM,09/01/2019,1164229,7.50,O2 (UK) LTD,1743099                  ,COMMISSIONING & CUSTOMER CONTACT,Cellphone,Internal Trading Cost Centres
Swale Borough Council,29UM,09/01/2019,1164229,33.00,O2 (UK) LTD,1743099                  ,ENVIRONMENTAL RESPONSE TEAM,Cellphone,Internal Trading Cost Centres
Swale Borough Council,29UM,09/01/2019,1164229,23.00,O2 (UK) LTD,1743099                  ,MKS LEGAL SERVICES,Cellphone,Internal Trading Cost Centres
Swale Borough Council,29UM,09/01/2019,1164229,7.50,O2 (UK) LTD,1743099                  ,FINANCIAL SERVICES,Cellphone,Internal Trading Cost Centres
Swale Borough Council,29UM,09/01/2019,1164229,15.00,O2 (UK) LTD,1743099                  ,LICENCING,Cellphone,Internal Trading Cost Centres
Swale Borough Council,29UM,09/01/2019,1164229,48.00,O2 (UK) LTD,1743099                  ,HOUSING SERVICES,Cellphone,Housing
Swale Borough Council,29UM,09/01/2019,1164229,15.75,O2 (UK) LTD,1743099                  ,ENVIRONMENTAL RESPONSE TEAM,Cellphone,Environmental and Regulatory Services
Swale Borough Council,29UM,09/01/2019,1164229,7.50,O2 (UK) LTD,1743099                  ,TOURISM & SPORTS DEVELOPMENT,Cellphone,Cultural and Related Services
Swale Borough Council,29UM,09/01/2019,1164229,40.00,O2 (UK) LTD,1743099                  ,HOUSING SERVICES,Cellphone,Housing
Swale Borough Council,29UM,09/01/2019,1164231,7.62,O2 (UK) LTD,1743099                  ,COMMUNITY SAFETY,Cellphone,Environmental and Regulatory Services
Swale Borough Council,29UM,09/01/2019,1164231,12.68,O2 (UK) LTD,1743099                  ,REVENUE SERVICES,Cellphone,Central Services to the Public
Swale Borough Council,29UM,09/01/2019,1164231,7.50,O2 (UK) LTD,1743099                  ,PLANNING SERVICES,Cellphone,Planning and Development Services
Swale Borough Council,29UM,09/01/2019,1164231,7.50,O2 (UK) LTD,1743099                  ,ECONOMIC DEVELOPMENT,Cellphone,Planning and Development Services
Swale Borough Council,29UM,09/01/2019,1164231,17.50,O2 (UK) LTD,1743099                  ,EMERGENCY PLANNING,Cellphone,Central Services to the Public
Swale Borough Council,29UM,09/01/2019,1164231,16.80,O2 (UK) LTD,1743099                  ,SERVICE DELIVERY,Cellphone,Cultural and Related Services
Swale Borough Council,29UM,09/01/2019,1164231,33.00,O2 (UK) LTD,1743099                  ,HOUSING SERVICES,Cellphone,Housing
Swale Borough Council,29UM,09/01/2019,1164231,7.50,O2 (UK) LTD,1743099                  ,REVENUE SERVICES,Cellphone,Housing
Swale Borough Council,29UM,09/01/2019,1164231,7.50,O2 (UK) LTD,1743099                  ,ECONOMY & COMMUNITIES,Cellphone,Internal Trading Cost Centres
Swale Borough Council,29UM,09/01/2019,1164231,15.24,O2 (UK) LTD,1743099                  ,TOURISM & SPORTS DEVELOPMENT,Cellphone,Internal Trading Cost Centres
Swale Borough Council,29UM,09/01/2019,1164231,67.00,O2 (UK) LTD,1743099                  ,PROPERTY SERVICES,Cellphone,Internal Trading Cost Centres
Swale Borough Council,29UM,09/01/2019,1164231,29.41,O2 (UK) LTD,1743099                  ,LICENCING,Cellphone,Internal Trading Cost Centres
Swale Borough Council,29UM,09/01/2019,1164231,67.50,O2 (UK) LTD,1743099                  ,CONTRACT & PROCUREMENT,Cellphone,Internal Trading Cost Centres
Swale Borough Council,29UM,09/01/2019,1164231,7.50,O2 (UK) LTD,1743099                  ,SERVICE DELIVERY,Cellphone,Internal Trading Cost Centres
Swale Borough Council,29UM,09/01/2019,1164231,20.50,O2 (UK) LTD,1743099                  ,ECONOMIC DEVELOPMENT,Cellphone,Internal Trading Cost Centres
Swale Borough Council,29UM,09/01/2019,1164231,49.19,O2 (UK) LTD,1743099                  ,LEISURE & OPEN SPACES,Cellphone,Internal Trading Cost Centres
Swale Borough Council,29UM,09/01/2019,1164231,7.60,O2 (UK) LTD,1743099                  ,PLANNING SERVICES,Cellphone,Internal Trading Cost Centres
Swale Borough Council,29UM,09/01/2019,1164231,7.50,O2 (UK) LTD,1743099                  ,DIRECTOR OF REGENERATION,Cellphone,Internal Trading Cost Centres
Swale Borough Council,29UM,09/01/2019,1164231,14.50,O2 (UK) LTD,1743099                  ,CHIEF EXECUTIVE,Cellphone,Internal Trading Cost Centres
Swale Borough Council,29UM,09/01/2019,1164231,7.50,O2 (UK) LTD,1743099                  ,POLICY,Cellphone,Internal Trading Cost Centres
Swale Borough Council,29UM,09/01/2019,1164231,7.50,O2 (UK) LTD,1743099                  ,COMMISSIONING & CUSTOMER CONTACT,Cellphone,Internal Trading Cost Centres
Swale Borough Council,29UM,09/01/2019,1164231,15.00,O2 (UK) LTD,1743099                  ,COMMISSIONING & CUSTOMER CONTACT,Cellphone,Internal Trading Cost Centres
Swale Borough Council,29UM,09/01/2019,1164231,7.50,O2 (UK) LTD,1743099                  ,COMMUNICATIONS,Cellphone,Internal Trading Cost Centres
Swale Borough Council,29UM,09/01/2019,1164231,33.00,O2 (UK) LTD,1743099                  ,ENVIRONMENTAL RESPONSE TEAM,Cellphone,Internal Trading Cost Centres
Swale Borough Council,29UM,09/01/2019,1164231,22.50,O2 (UK) LTD,1743099                  ,MKS LEGAL SERVICES,Cellphone,Internal Trading Cost Centres
Swale Borough Council,29UM,09/01/2019,1164231,7.50,O2 (UK) LTD,1743099                  ,FINANCIAL SERVICES,Cellphone,Internal Trading Cost Centres
Swale Borough Council,29UM,09/01/2019,1164231,67.05,O2 (UK) LTD,1743099                  ,ENVIRONMENTAL RESPONSE TEAM,Cellphone,Internal Trading Cost Centres
Swale Borough Council,29UM,09/01/2019,1164231,7.00,O2 (UK) LTD,1743099                  ,MKS ENVIRONMENTAL SERVICES,Cellphone,Internal Trading Cost Centres
Swale Borough Council,29UM,09/01/2019,1164231,3.00,O2 (UK) LTD,1743099                  ,PLANNING SERVICES,Cellphone,Planning and Development Services
Swale Borough Council,29UM,09/01/2019,1164231,40.50,O2 (UK) LTD,1743099                  ,HOUSING SERVICES,Cellphone,Housing
Swale Borough Council,29UM,09/01/2019,1164231,16.19,O2 (UK) LTD,1743099                  ,ENVIRONMENTAL RESPONSE TEAM,Cellphone,Environmental and Regulatory Services
Swale Borough Council,29UM,09/01/2019,1164231,7.62,O2 (UK) LTD,1743099                  ,TOURISM & SPORTS DEVELOPMENT,Cellphone,Cultural and Related Services
Swale Borough Council,29UM,09/01/2019,1164231,40.00,O2 (UK) LTD,1743099                  ,HOUSING SERVICES,Cellphone,Housing
Swale Borough Council,29UM,09/01/2019,1164568,1358.00,OBSIDIAN SECURITY LTD,                         ,PROPERTY SERVICES,Buildings Maintenance,Corporate & Democratic Core
Swale Borough Council,29UM,09/01/2019,1164661,2300.00,P BINNIE CONSULTANCY LTD,07794784                 ,ECONOMIC DEVELOPMENT,Consultancy/Specialist Advice,Planning and Development Services
Swale Borough Council,29UM,09/01/2019,1164081,34609.00,PARAMOUNT INDEPENDENT PROPERTY SERVICES,                         ,HOUSING SERVICES,NL (Nightly Lets) - Homelessness Landlord Payments,Housing
Swale Borough Council,29UM,09/01/2019,1164567,1000.00,PATHFINDER DEVELOPMENT CONSULTANTS LTD,08666821                 ,PLANNING SERVICES,Fees and Services,Planning and Development Services
Swale Borough Council,29UM,09/01/2019,1164642,687.88,ROYAL MAIL GROUP LTD,4138203                  ,REVENUE SERVICES,Postage,Central Services to the Public
Swale Borough Council,29UM,09/01/2019,1164725,1079.44,ROYAL MAIL GROUP LTD,4138203                  ,PROPERTY SERVICES,Postage,Holding Codes
Swale Borough Council,29UM,09/01/2019,1164726,275.00,ROYAL MAIL GROUP LTD,4138203                  ,REVENUE SERVICES,Postage,Central Services to the Public
Swale Borough Council,29UM,09/01/2019,1164709,413.00,RSP RAIL TRAVEL ACCOUNT - (DT),                         ,FINANCIAL SERVICES,Travel Warrants (Staff Travel),Internal Trading Cost Centres
Swale Borough Council,29UM,09/01/2019,1164634,375.00,RURAL PLANNING LTD,4426249                  ,PLANNING SERVICES,Fees and Services,Planning and Development Services
Swale Borough Council,29UM,09/01/2019,1164662,268.50,SHEERNESS MARKET TRADERS CO-OPERATIVE,                         ,TOURISM & SPORTS DEVELOPMENT,Fees and Services,Trading Undertaking
Swale Borough Council,29UM,09/01/2019,1164773,-4000.00,SHEERNESS TOWN TEAM,                         ,TOURISM & SPORTS DEVELOPMENT,Grants & Subscriptions,Cultural and Related Services
Swale Borough Council,29UM,09/01/2019,1164774,4000.00,SHEERNESS TOWN TEAM,                         ,TOURISM & SPORTS DEVELOPMENT,Grants & Subscriptions,Cultural and Related Services
Swale Borough Council,29UM,09/01/2019,1164666,500.00,SITTINGBOURNE CARNIVAL ASSOCIATION,                         ,ECONOMY & COMMUNITIES,Grants & Subscriptions,Central Services to the Public
Swale Borough Council,29UM,09/01/2019,1164727,31.51,SODEXO MOTIVATION SOLUTIONS UK LTD,2680629                  ,HUMAN RESOURCES,Fees and Services,Corporate & Democratic Core
Swale Borough Council,29UM,09/01/2019,1164632,1650.00,THE OYSTER PARTNERSHIP,05020374                 ,PLANNING SERVICES,Agency/Contract Staff,Planning and Development Services
Swale Borough Council,29UM,09/01/2019,1164523,-34.90,UNISON,                         ,HUMAN RESOURCES,Payroll - Unison Deductions Admin Charge,Corporate & Democratic Core
Swale Borough Council,29UM,09/01/2019,1164601,612.92,VANITORIALS LIMITED,3952938                  ,PROPERTY SERVICES,Cleaning Materials,Internal Trading Cost Centres
Swale Borough Council,29UM,09/01/2019,1164659,425.47,VR SANI-CO LTD,3588359                  ,CONTRACT & PROCUREMENT,Hygiene Service Contracts,Environmental and Regulatory Services
Swale Borough Council,29UM,09/01/2019,1164611,1500.00,WEALD WOODSCAPES LTD,8028446                  ,LEISURE & OPEN SPACES,Maintenance - Grounds,Cultural and Related Services
Swale Borough Council,29UM,09/01/2019,1164432,837.86,WHISTL UK LIMITED,04417047                 ,REVENUE SERVICES,Postage,Central Services to the Public
Swale Borough Council,29UM,09/01/2019,1164432,418.93,WHISTL UK LIMITED,04417047                 ,REVENUE SERVICES,Postage,Housing
Swale Borough Council,29UM,09/01/2019,1164432,15.48,WHISTL UK LIMITED,04417047                 ,CAR PARKS,Postage,Internal Trading Cost Centres
Swale Borough Council,29UM,09/01/2019,1164432,158.24,WHISTL UK LIMITED,04417047                 ,PROPERTY SERVICES,Postage,Holding Codes
Swale Borough Council,29UM,09/01/2019,1164432,170.12,WHISTL UK LIMITED,04417047                 ,DEMOCRATIC & ELECTORAL SERVICES,Postage,Central Services to the Public
Swale Borough Council,29UM,09/01/2019,1164798,3534.00,WILLOW TREE HOME SOLUTIONS LTD,                         ,HOUSING SERVICES,Housing Renovation Grants,Not used in this Structure
Swale Borough Council,29UM,16/01/2019,1164874,1500.00,ACORN MAINTENANCE SERVICES,3546898                  ,HOUSING SERVICES,Staying Put small repairs (contractors),Housing
Swale Borough Council,29UM,16/01/2019,1164836,365.19,ADELANTE SOFTWARE LTD,4450760                  ,REVENUE SERVICES,Commission Paid,Central Services to the Public
Swale Borough Council,29UM,16/01/2019,1164836,2.87,ADELANTE SOFTWARE LTD,4450760                  ,REVENUE SERVICES,Commission Paid,Housing
Swale Borough Council,29UM,16/01/2019,1164836,143.62,ADELANTE SOFTWARE LTD,4450760                  ,EXCHEQUER,Commission Paid,Internal Trading Cost Centres
Swale Borough Council,29UM,16/01/2019,1164728,266.67,ALLEN FORD (UK) LTD T/A SMC,04782818                 ,ENVIRONMENTAL RESPONSE TEAM,Other Vehicle Expenses,Internal Trading Cost Centres
Swale Borough Council,29UM,16/01/2019,1164763,80429.00,ARRIVA KENT AND SURREY LIMITED,                         ,PLANNING SERVICES,Payments in Year,Ledger/Suspense Codes
Swale Borough Council,29UM,16/01/2019,1164936,2034.00,ASCENDIT LIFTS LTD,3493530                  ,HOUSING SERVICES,Housing Renovation Grants,Not used in this Structure
Swale Borough Council,29UM,16/01/2019,1164719,300.00,ASPIRATIONS,                         ,ECONOMY & COMMUNITIES,Grants & Subscriptions,Central Services to the Public
Swale Borough Council,29UM,16/01/2019,1164818,1582.69,BLENWOOD LTD,4383277                  ,CAR PARKS,Maintenance - Grounds,Highway and Transport Services
Swale Borough Council,29UM,16/01/2019,1164820,2013.25,BLENWOOD LTD,4383277                  ,LEISURE & OPEN SPACES,Tree Maintenance,Cultural and Related Services
Swale Borough Council,29UM,16/01/2019,1164782,400.00,CHILDREN & FAMILIES LIMITED,                         ,ECONOMY & COMMUNITIES,Grants & Subscriptions,Central Services to the Public
Swale Borough Council,29UM,16/01/2019,1164801,33357.50,CITIZENS ADVICE BUREAU IN SWALE,5052691                  ,TOURISM & SPORTS DEVELOPMENT,Voluntary Organisations Grants,Central Services to the Public
Swale Borough Council,29UM,16/01/2019,1164695,4469.84,COBALT TELEPHONE TECHNOLOGIES LIMITED,03151938                 ,CAR PARKS,Fees - Licence,Highway and Transport Services
Swale Borough Council,29UM,16/01/2019,1164635,371.40,CONTRACT SECURITY SERVICES,2461362                  ,EXCHEQUER,Cash Security,Internal Trading Cost Centres
Swale Borough Council,29UM,16/01/2019,1164635,3100.80,CONTRACT SECURITY SERVICES,2461362                  ,CAR PARKS,Cash Security,Highway and Transport Services
Swale Borough Council,29UM,16/01/2019,1164938,3165.12,DAYTRAD LIMITED,7654373                  ,HOUSING SERVICES,Housing Renovation Grants,Not used in this Structure
Swale Borough Council,29UM,16/01/2019,1164891,305.00,DCF VETERINARY CONSULTANCY LTD,10457421                 ,ENVIRONMENTAL RESPONSE TEAM,Fees - Veterinary,Environmental and Regulatory Services
Swale Borough Council,29UM,16/01/2019,1164722,1918.15,DHA PLANNING,2683290                  ,PLANNING SERVICES,Fees and Services,Planning and Development Services
Swale Borough Council,29UM,16/01/2019,1164687,308.00,DISCLOSURE & BARRING SERVICE (DT),                         ,LICENCING,Fees and Services,Environmental and Regulatory Services
Swale Borough Council,29UM,16/01/2019,1164847,4362.50,ENVITECH EUROPE LTD,SC367372                 ,MKS ENVIRONMENTAL SERVICES,Private Contractors,Environmental and Regulatory Services
Swale Borough Council,29UM,16/01/2019,1164757,2115.00,FIRST STOP HOUSING SOLUTION LTD,                         ,HOUSING SERVICES,NL (Nightly Lets) - Homelessness Landlord Payments,Housing
Swale Borough Council,29UM,16/01/2019,1164744,1176.00,G2V RECRUITMENT GROUP LIMITED,08067630                 ,HOUSING SERVICES,Agency/Contract Staff,Housing
Swale Borough Council,29UM,16/01/2019,1164853,504.00,G2V RECRUITMENT GROUP LIMITED,08067630                 ,HOUSING SERVICES,Agency/Contract Staff,Housing
Swale Borough Council,29UM,16/01/2019,1164756,360.00,GOODWIN PEST MANAGEMENT,                         ,LEISURE & OPEN SPACES,Pest Control Services,Environmental and Regulatory Services
Swale Borough Council,29UM,16/01/2019,1164939,2514.00,HIGHER ELEVATION LTD,4078005                  ,HOUSING SERVICES,Housing Renovation Grants,Not used in this Structure
Swale Borough Council,29UM,16/01/2019,1164867,7000.00,HQN LIMITED,3087930                  ,HOUSING SERVICES,Consultancy/Specialist Advice,Housing
Swale Borough Council,29UM,16/01/2019,1164940,5526.00,HUBBARD & HOUGHTON CONSTRUCTION LTD,                         ,HOUSING SERVICES,Housing Renovation Grants,Not used in this Structure
Swale Borough Council,29UM,16/01/2019,1164844,254.50,INVVU CONSTRUCTION CONSULTANTS LTD,10967367                 ,PLANNING SERVICES,Payments in Year,Ledger/Suspense Codes
Swale Borough Council,29UM,16/01/2019,1164704,4442.90,KINGDOM SECURITY LIMITED,2795197                  ,ENVIRONMENTAL RESPONSE TEAM,Fees and Services,Planning and Development Services
Swale Borough Council,29UM,16/01/2019,1164777,578.83,KIRKMAN & JOURDAIN LTD,01766240                 ,PROPERTY SERVICES,Non-Planned Building Maintenance,Trading Undertaking
Swale Borough Council,29UM,16/01/2019,1164777,40.19,KIRKMAN & JOURDAIN LTD,01766240                 ,HOUSING SERVICES,General Maintenance,Housing
Swale Borough Council,29UM,16/01/2019,1164777,88.17,KIRKMAN & JOURDAIN LTD,01766240                 ,HOUSING SERVICES,General Maintenance,Housing
Swale Borough Council,29UM,16/01/2019,1164777,27.00,KIRKMAN & JOURDAIN LTD,01766240                 ,HOUSING SERVICES,General Maintenance,Housing
Swale Borough Council,29UM,16/01/2019,1164777,210.00,KIRKMAN & JOURDAIN LTD,01766240                 ,HOUSING SERVICES,General Maintenance,Housing
Swale Borough Council,29UM,16/01/2019,1164777,41.25,KIRKMAN & JOURDAIN LTD,01766240                 ,HOUSING SERVICES,General Maintenance,Housing
Swale Borough Council,29UM,16/01/2019,1164777,48.13,KIRKMAN & JOURDAIN LTD,01766240                 ,HOUSING SERVICES,General Maintenance,Housing
Swale Borough Council,29UM,16/01/2019,1164777,53.14,KIRKMAN & JOURDAIN LTD,01766240                 ,HOUSING SERVICES,General Maintenance,Housing
Swale Borough Council,29UM,16/01/2019,1164777,220.85,KIRKMAN & JOURDAIN LTD,01766240                 ,HOUSING SERVICES,General Maintenance,Housing
Swale Borough Council,29UM,16/01/2019,1164777,789.62,KIRKMAN & JOURDAIN LTD,01766240                 ,PROPERTY SERVICES,Non-Planned Building Maintenance,Corporate & Democratic Core
Swale Borough Council,29UM,16/01/2019,1164777,85.95,KIRKMAN & JOURDAIN LTD,01766240                 ,PROPERTY SERVICES,Non-Planned Building Maintenance,Corporate & Democratic Core
Swale Borough Council,29UM,16/01/2019,1164777,51.10,KIRKMAN & JOURDAIN LTD,01766240                 ,PROPERTY SERVICES,Non-Planned Building Maintenance,Corporate & Democratic Core
Swale Borough Council,29UM,16/01/2019,1164777,33.75,KIRKMAN & JOURDAIN LTD,01766240                 ,PROPERTY SERVICES,Non-Planned Building Maintenance,Corporate & Democratic Core
Swale Borough Council,29UM,16/01/2019,1164777,70.81,KIRKMAN & JOURDAIN LTD,01766240                 ,PROPERTY SERVICES,Non-Planned Building Maintenance,Corporate & Democratic Core
Swale Borough Council,29UM,16/01/2019,1164777,41.25,KIRKMAN & JOURDAIN LTD,01766240                 ,CONTRACT & PROCUREMENT,Non-Planned Building Maintenance,Environmental and Regulatory Services
Swale Borough Council,29UM,16/01/2019,1164777,39.50,KIRKMAN & JOURDAIN LTD,01766240                 ,CONTRACT & PROCUREMENT,Non-Planned Building Maintenance,Environmental and Regulatory Services
Swale Borough Council,29UM,16/01/2019,1164777,20.63,KIRKMAN & JOURDAIN LTD,01766240                 ,CONTRACT & PROCUREMENT,Non-Planned Building Maintenance,Environmental and Regulatory Services
Swale Borough Council,29UM,16/01/2019,1164777,2138.62,KIRKMAN & JOURDAIN LTD,01766240                 ,CONTRACT & PROCUREMENT,Non-Planned Building Maintenance,Environmental and Regulatory Services
Swale Borough Council,29UM,16/01/2019,1164777,105.43,KIRKMAN & JOURDAIN LTD,01766240                 ,CONTRACT & PROCUREMENT,Non-Planned Building Maintenance,Environmental and Regulatory Services
Swale Borough Council,29UM,16/01/2019,1164777,27.00,KIRKMAN & JOURDAIN LTD,01766240                 ,CONTRACT & PROCUREMENT,Non-Planned Building Maintenance,Environmental and Regulatory Services
Swale Borough Council,29UM,16/01/2019,1164777,80.51,KIRKMAN & JOURDAIN LTD,01766240                 ,CONTRACT & PROCUREMENT,Non-Planned Building Maintenance,Environmental and Regulatory Services
Swale Borough Council,29UM,16/01/2019,1164777,292.21,KIRKMAN & JOURDAIN LTD,01766240                 ,CONTRACT & PROCUREMENT,Non-Planned Building Maintenance,Environmental and Regulatory Services
Swale Borough Council,29UM,16/01/2019,1164777,55.00,KIRKMAN & JOURDAIN LTD,01766240                 ,CONTRACT & PROCUREMENT,Non-Planned Building Maintenance,Environmental and Regulatory Services
Swale Borough Council,29UM,16/01/2019,1164777,139.74,KIRKMAN & JOURDAIN LTD,01766240                 ,CONTRACT & PROCUREMENT,Non-Planned Building Maintenance,Environmental and Regulatory Services
Swale Borough Council,29UM,16/01/2019,1164777,27.00,KIRKMAN & JOURDAIN LTD,01766240                 ,CONTRACT & PROCUREMENT,Non-Planned Building Maintenance,Environmental and Regulatory Services
Swale Borough Council,29UM,16/01/2019,1164777,106.00,KIRKMAN & JOURDAIN LTD,01766240                 ,LEISURE & OPEN SPACES,Non-Planned Building Maintenance,Cultural and Related Services
Swale Borough Council,29UM,16/01/2019,1164848,300.00,LEMAR LIMITED,04350292                 ,SERVICE DELIVERY,Private Contractors - CIS,Highway and Transport Services
Swale Borough Council,29UM,16/01/2019,1164848,225.00,LEMAR LIMITED,04350292                 ,SERVICE DELIVERY,Private Contractors - CIS,Highway and Transport Services
Swale Borough Council,29UM,16/01/2019,1164849,300.00,LEMAR LIMITED,04350292                 ,SERVICE DELIVERY,Private Contractors - CIS,Highway and Transport Services
Swale Borough Council,29UM,16/01/2019,1164849,300.00,LEMAR LIMITED,04350292                 ,SERVICE DELIVERY,Private Contractors - CIS,Highway and Transport Services
Swale Borough Council,29UM,16/01/2019,1164850,300.00,LEMAR LIMITED,04350292                 ,SERVICE DELIVERY,Private Contractors - CIS,Highway and Transport Services
Swale Borough Council,29UM,16/01/2019,1164850,240.00,LEMAR LIMITED,04350292                 ,SERVICE DELIVERY,Private Contractors - CIS,Highway and Transport Services
Swale Borough Council,29UM,16/01/2019,1164064,28438.00,LINK PROPERTY GROUP,                         ,HOUSING SERVICES,NL (Nightly Lets) - Homelessness Landlord Payments,Housing
Swale Borough Council,29UM,16/01/2019,1164753,2065.00,LUSHLAND,4289261                  ,PLANNING SERVICES,Fees and Services,Planning and Development Services
Swale Borough Council,29UM,16/01/2019,1164637,979.00,MAGEES GUESTHOUSE,                         ,HOUSING SERVICES,B & B - Homelessness Landlord Payments,Housing
Swale Borough Council,29UM,16/01/2019,1164708,609.00,MAGEES GUESTHOUSE,                         ,HOUSING SERVICES,B & B - Homelessness Landlord Payments,Housing
Swale Borough Council,29UM,16/01/2019,1164764,720.00,MAGEES GUESTHOUSE,                         ,HOUSING SERVICES,B & B - Homelessness Landlord Payments,Housing
Swale Borough Council,29UM,16/01/2019,1164905,609.00,MAGEES GUESTHOUSE,                         ,HOUSING SERVICES,B & B - Homelessness Landlord Payments,Housing
Swale Borough Council,29UM,16/01/2019,1164689,10300.58,MATRIX SCM LTD,2227962                  ,HUMAN RESOURCES,Agency/Contract Staff,Internal Trading Cost Centres
Swale Borough Council,29UM,16/01/2019,1164627,392.00,MEDWAY ACCOMMODATION LIMITED,                         ,HOUSING SERVICES,B & B - Homelessness Landlord Payments,Housing
Swale Borough Council,29UM,16/01/2019,1164627,81.67,MEDWAY ACCOMMODATION LIMITED,                         ,HOUSING SERVICES,B & B - Homelessness Landlord Payments,Housing
Swale Borough Council,29UM,16/01/2019,1164758,55491.75,MEDWAY COUNCIL,                         ,COMMUNITY SAFETY,CCTV Monitoring Service,Environmental and Regulatory Services
Swale Borough Council,29UM,16/01/2019,1164761,500.00,MR J W GATES,                         ,LEISURE & OPEN SPACES,Maintenance - Grounds,Cultural and Related Services
Swale Borough Council,29UM,16/01/2019,1164761,40.00,MR J W GATES,                         ,LEISURE & OPEN SPACES,Maintenance - Grounds,Cultural and Related Services
Swale Borough Council,29UM,16/01/2019,1164628,454.00,REDACTED PERSONAL INFORMATION,                         ,HOUSING SERVICES,B & B - Homelessness Landlord Payments,Housing
Swale Borough Council,29UM,16/01/2019,1164716,795.00,REDACTED PERSONAL INFORMATION,                         ,HOUSING SERVICES,B & B - Homelessness Landlord Payments,Housing
Swale Borough Council,29UM,16/01/2019,1164714,547.15,NEW LEAF SUPPORT LTD,                         ,HOUSING SERVICES,NL (Nightly Lets) - Homelessness Landlord Payments,Housing
Swale Borough Council,29UM,16/01/2019,1164707,2181.60,NEWAUTO LTD T/A MOGOUK,3051444                  ,LICENCING,Equipment Purchase,Environmental and Regulatory Services
Swale Borough Council,29UM,16/01/2019,1164707,19.90,NEWAUTO LTD T/A MOGOUK,3051444                  ,LICENCING,Equipment Purchase,Environmental and Regulatory Services
Swale Borough Council,29UM,16/01/2019,1164827,282.96,NPOWER,                         ,LEISURE & OPEN SPACES,Electricity,Cultural and Related Services
Swale Borough Council,29UM,16/01/2019,1164828,303.69,NPOWER,                         ,CAR PARKS,Electricity,Highway and Transport Services
Swale Borough Council,29UM,16/01/2019,1164834,500.00,OASIS ACADEMY ISLE OF SHEPPEY,                         ,ECONOMY & COMMUNITIES,Grants & Subscriptions,Central Services to the Public
Swale Borough Council,29UM,16/01/2019,1164895,4000.00,ONE TEAM LOGIC LTD,09075059                 ,COMMUNITY SAFETY,Performance Fund Expenditure,Ledger/Suspense Codes
Swale Borough Council,29UM,16/01/2019,1164879,375.00,PSR LIGHTING AND SIGNS LTD,07159892                 ,SERVICE DELIVERY,Private Contractors - CIS,Environmental and Regulatory Services
Swale Borough Council,29UM,16/01/2019,1164856,32040.88,QUEENBOROUGH HARBOUR TRUST,                         ,ECONOMIC DEVELOPMENT,Payments in Year,Ledger/Suspense Codes
Swale Borough Council,29UM,16/01/2019,1164748,1694.00,REARDON PROPERTIES,                         ,HOUSING SERVICES,NL (Nightly Lets) - Homelessness Landlord Payments,Housing
Swale Borough Council,29UM,16/01/2019,1164749,1610.00,REARDON PROPERTIES,                         ,HOUSING SERVICES,NL (Nightly Lets) - Homelessness Landlord Payments,Housing
Swale Borough Council,29UM,16/01/2019,1164750,1610.00,REARDON PROPERTIES,                         ,HOUSING SERVICES,NL (Nightly Lets) - Homelessness Landlord Payments,Housing
Swale Borough Council,29UM,16/01/2019,1164751,1610.00,REARDON PROPERTIES,                         ,HOUSING SERVICES,NL (Nightly Lets) - Homelessness Landlord Payments,Housing
Swale Borough Council,29UM,16/01/2019,1164752,1610.00,REARDON PROPERTIES,                         ,HOUSING SERVICES,NL (Nightly Lets) - Homelessness Landlord Payments,Housing
Swale Borough Council,29UM,16/01/2019,1164843,300.00,ROTARY CLUB S'BOURNE INVICTA TRUST FUND,                         ,ECONOMY & COMMUNITIES,Grants & Subscriptions,Central Services to the Public
Swale Borough Council,29UM,16/01/2019,1164866,548.00,S & J SERVICES,                         ,LEISURE & OPEN SPACES,Maintenance - Grounds,Cultural and Related Services
Swale Borough Council,29UM,16/01/2019,1164866,323.00,S & J SERVICES,                         ,LEISURE & OPEN SPACES,Maintenance - Grounds,Cultural and Related Services
Swale Borough Council,29UM,16/01/2019,1164890,585.00,SHARNWOOD DEVELOPMENTS LTD,                         ,HOUSING SERVICES,RDS - Landlord claim on Bond Scheme,Housing
Swale Borough Council,29UM,16/01/2019,1164781,2800.00,SHEERNESS TOWN TEAM,                         ,ECONOMY & COMMUNITIES,Grants & Subscriptions,Central Services to the Public
Swale Borough Council,29UM,16/01/2019,1164783,700.00,SHEPPEY SUMMER CARNIVAL CLUB,                         ,ECONOMY & COMMUNITIES,Grants & Subscriptions,Central Services to the Public
Swale Borough Council,29UM,16/01/2019,1164784,360.00,SITTINGBOURNE RETAIL ASSOCIATION,                         ,TOURISM & SPORTS DEVELOPMENT,Grants & Subscriptions,Cultural and Related Services
Swale Borough Council,29UM,16/01/2019,1164883,275.00,SUREGROUP 24HR LIMITED,09895055                 ,HOUSING SERVICES,Rechargeable Environ Works,Housing
Swale Borough Council,29UM,16/01/2019,1164703,572.00,THE OYSTER PARTNERSHIP,05020374                 ,PLANNING SERVICES,Agency/Contract Staff,Planning and Development Services
Swale Borough Council,29UM,16/01/2019,1164855,1496.00,THE OYSTER PARTNERSHIP,05020374                 ,PLANNING SERVICES,Agency/Contract Staff,Planning and Development Services
Swale Borough Council,29UM,16/01/2019,1164779,368.00,THOMSON REUTERS,1679046                  ,MKS LEGAL SERVICES,"Books, Journals & e - resources",Internal Trading Cost Centres
Swale Borough Council,29UM,16/01/2019,1164668,2940.00,TRAFALGAR TAVERN LTD,07999329                 ,HOUSING SERVICES,B & B - Homelessness Landlord Payments,Housing
Swale Borough Council,29UM,16/01/2019,1164738,1470.00,TRAFALGAR TAVERN LTD,07999329                 ,HOUSING SERVICES,B & B - Homelessness Landlord Payments,Housing
Swale Borough Council,29UM,16/01/2019,1164898,1470.00,TRAFALGAR TAVERN LTD,07999329                 ,HOUSING SERVICES,B & B - Homelessness Landlord Payments,Housing
Swale Borough Council,29UM,16/01/2019,1164582,250.00,UNIT4 BUSINESS SOFTWARE LIMITED,1737985                  ,FINANCIAL SERVICES,Fees and Services,Internal Trading Cost Centres
Swale Borough Council,29UM,16/01/2019,1164696,1609.50,VIVID RESOURCING LIMITED,06459262                 ,PLANNING SERVICES,Agency/Contract Staff,Internal Trading Cost Centres
Swale Borough Council,29UM,16/01/2019,1164697,761.25,VIVID RESOURCING LIMITED,06459262                 ,PLANNING SERVICES,Agency/Contract Staff,Internal Trading Cost Centres
Swale Borough Council,29UM,16/01/2019,1164862,978.75,VIVID RESOURCING LIMITED,06459262                 ,PLANNING SERVICES,Agency/Contract Staff,Internal Trading Cost Centres
Swale Borough Council,29UM,16/01/2019,1164739,318.94,W J ODDS LTD,                         ,HOUSING SERVICES,Staying Put - Materials,Housing
Swale Borough Council,29UM,16/01/2019,1164581,397.96,WHISTL UK LIMITED,04417047                 ,REVENUE SERVICES,Postage,Central Services to the Public
Swale Borough Council,29UM,16/01/2019,1164581,198.98,WHISTL UK LIMITED,04417047                 ,REVENUE SERVICES,Postage,Housing
Swale Borough Council,29UM,16/01/2019,1164581,6.55,WHISTL UK LIMITED,04417047                 ,CAR PARKS,Postage,Internal Trading Cost Centres
Swale Borough Council,29UM,16/01/2019,1164581,131.97,WHISTL UK LIMITED,04417047                 ,PROPERTY SERVICES,Postage,Holding Codes
Swale Borough Council,29UM,16/01/2019,1164581,148.23,WHISTL UK LIMITED,04417047                 ,DEMOCRATIC & ELECTORAL SERVICES,Postage,Central Services to the Public
Swale Borough Council,29UM,16/01/2019,1164875,320.00,WILLOW TREE HOME SOLUTIONS LTD,                         ,HOUSING SERVICES,Staying Put small repairs (contractors),Housing
Swale Borough Council,29UM,16/01/2019,1164877,468.00,WILLOW TREE HOME SOLUTIONS LTD,                         ,HOUSING SERVICES,Staying Put small repairs (contractors),Housing
Swale Borough Council,29UM,16/01/2019,1164937,5985.00,WILLOW TREE HOME SOLUTIONS LTD,                         ,HOUSING SERVICES,Housing Renovation Grants,Not used in this Structure
Swale Borough Council,29UM,16/01/2019,1164762,4920.00,WYNNE-WILLIAMS ASSOCIATES LTD,5148770                  ,LEISURE & OPEN SPACES,Capitalised Fees And Charges,Not used in this Structure
Swale Borough Council,29UM,23/01/2019,1164945,152.42,ALLSTAR BUSINESS SOLUTIONS LTD - (DT),1073098                  ,SERVICE DELIVERY,Petrol/Derv & Oil,Cultural and Related Services
Swale Borough Council,29UM,23/01/2019,1164945,318.61,ALLSTAR BUSINESS SOLUTIONS LTD - (DT),1073098                  ,ENVIRONMENTAL RESPONSE TEAM,Fuel For Contract Vehicles,Internal Trading Cost Centres
Swale Borough Council,29UM,23/01/2019,1164945,69.92,ALLSTAR BUSINESS SOLUTIONS LTD - (DT),1073098                  ,LEISURE & OPEN SPACES,Fuel For Contract Vehicles,Cultural and Related Services
Swale Borough Council,29UM,23/01/2019,1164945,53.29,ALLSTAR BUSINESS SOLUTIONS LTD - (DT),1073098                  ,ENVIRONMENTAL RESPONSE TEAM,Fuel For Contract Vehicles,Environmental and Regulatory Services
Swale Borough Council,29UM,23/01/2019,1164945,79.98,ALLSTAR BUSINESS SOLUTIONS LTD - (DT),1073098                  ,HOUSING SERVICES,Fuel For Contract Vehicles,Housing
Swale Borough Council,29UM,23/01/2019,1165008,603.40,ANGLO LINERS LIMITED,08330664                 ,SERVICE DELIVERY,Private Contractors - CIS,Highway and Transport Services
Swale Borough Council,29UM,23/01/2019,1165008,258.60,ANGLO LINERS LIMITED,08330664                 ,SERVICE DELIVERY,Private Contractors - CIS,Highway and Transport Services
Swale Borough Council,29UM,23/01/2019,1164860,590.00,ARCHWAY HIGHWAY SERVICES,07894230                 ,CAR PARKS,Maintenance - Grounds,Highway and Transport Services
Swale Borough Council,29UM,23/01/2019,1164861,1055.60,ARCHWAY HIGHWAY SERVICES,07894230                 ,CAR PARKS,Road Lining,Highway and Transport Services
Swale Borough Council,29UM,23/01/2019,1164908,900.00,BIG FISH ARTS TRUST,                         ,TOURISM & SPORTS DEVELOPMENT,Grants & Subscriptions,Cultural and Related Services
Swale Borough Council,29UM,23/01/2019,1164982,775.00,BLENWOOD LTD,4383277                  ,LEISURE & OPEN SPACES,Maintenance - Grounds,Cultural and Related Services
Swale Borough Council,29UM,23/01/2019,1164934,550.00,BRITISH DESTINATIONS,                         ,TOURISM & SPORTS DEVELOPMENT,Grants & Subscriptions,Cultural and Related Services
Swale Borough Council,29UM,23/01/2019,1164760,20110.32,BRITISH TELECOM PLC,1800000                  ,MKS ICT,Telephone,Corporate & Democratic Core
Swale Borough Council,29UM,23/01/2019,1164893,8018.00,CANT. ARCHAEOLOGICAL TRUST LTD,01441517                 ,ECONOMY & COMMUNITIES,Communities Fund Expenditure,Ledger/Suspense Codes
Swale Borough Council,29UM,23/01/2019,1163981,371.40,CONTRACT SECURITY SERVICES,2461362                  ,EXCHEQUER,Cash Security,Internal Trading Cost Centres
Swale Borough Council,29UM,23/01/2019,1163981,3230.00,CONTRACT SECURITY SERVICES,2461362                  ,CAR PARKS,Cash Security,Highway and Transport Services
Swale Borough Council,29UM,23/01/2019,1164924,400.00,FIRST HAND EXPERIENCE CIC,                         ,ECONOMY & COMMUNITIES,Grants & Subscriptions,Central Services to the Public
Swale Borough Council,29UM,23/01/2019,1164985,798.00,G2V RECRUITMENT GROUP LIMITED,08067630                 ,HOUSING SERVICES,Agency/Contract Staff,Housing
Swale Borough Council,29UM,23/01/2019,1165055,7810.00,GOV LEGAL CLIENT MONIES,                         ,PLANNING SERVICES,Court Costs,Planning and Development Services
Swale Borough Council,29UM,23/01/2019,1164918,1684.00,HERITAGE STONE RESTORATION CO. LIMITED,1877637                  ,LEISURE & OPEN SPACES,Maintenance - Grounds,Environmental and Regulatory Services
Swale Borough Council,29UM,23/01/2019,1164919,974.00,HERITAGE STONE RESTORATION CO. LIMITED,1877637                  ,LEISURE & OPEN SPACES,Non-Planned Building Maintenance,Environmental and Regulatory Services
Swale Borough Council,29UM,23/01/2019,1165006,3500.00,HMCTS,                         ,CAR PARKS,Parking Adjudication Fees,Highway and Transport Services
Swale Borough Council,29UM,23/01/2019,1165006,3500.00,HMCTS,                         ,CAR PARKS,Parking Adjudication Fees,Highway and Transport Services
Swale Borough Council,29UM,23/01/2019,1165110,236126.00,HUBER CAR PARK SYST INTL GMBH (DT),                         ,FINANCIAL SERVICES,STC - Capitalised Fees And Charges,Not used in this Structure
Swale Borough Council,29UM,23/01/2019,1165028,1299.00,INTEGRITY PRINT LTD,GB927217815              ,CAR PARKS,External Permit Printing,Highway and Transport Services
Swale Borough Council,29UM,23/01/2019,1164713,280.00,J N CLEARANCE,                         ,LEISURE & OPEN SPACES,Grounds Contract Variations,Cultural and Related Services
Swale Borough Council,29UM,23/01/2019,1164932,1550.00,KAREBEAR KENNELS LTD,                         ,ENVIRONMENTAL RESPONSE TEAM,Kennelling Of Dogs,Environmental and Regulatory Services
Swale Borough Council,29UM,23/01/2019,1164932,56.63,KAREBEAR KENNELS LTD,                         ,ENVIRONMENTAL RESPONSE TEAM,Kennelling Of Dogs,Environmental and Regulatory Services
Swale Borough Council,29UM,23/01/2019,1164932,34.12,KAREBEAR KENNELS LTD,                         ,ENVIRONMENTAL RESPONSE TEAM,Kennelling Of Dogs,Environmental and Regulatory Services
Swale Borough Council,29UM,23/01/2019,1164932,-455.00,KAREBEAR KENNELS LTD,                         ,ENVIRONMENTAL RESPONSE TEAM,Income collected by Dog Kennels,Environmental and Regulatory Services
Swale Borough Council,29UM,23/01/2019,1164881,3829.44,KENT COUNTY COUNCIL (KCS),                         ,PROPERTY SERVICES,Electricity,Corporate & Democratic Core
Swale Borough Council,29UM,23/01/2019,1164897,3879.41,KENT COUNTY COUNCIL (KCS),                         ,PROPERTY SERVICES,Gas,Corporate & Democratic Core
Swale Borough Council,29UM,23/01/2019,1164647,9199.00,LESSHOMELESS LIMITED,08458851                 ,HOUSING SERVICES,NL (Nightly Lets) - Homelessness Landlord Payments,Housing
Swale Borough Council,29UM,23/01/2019,1164946,10109.00,LESSHOMELESS LIMITED,08458851                 ,HOUSING SERVICES,NL (Nightly Lets) - Homelessness Landlord Payments,Housing
Swale Borough Council,29UM,23/01/2019,1163078,336.00,LILAC ESTATES,                         ,HOUSING SERVICES,B & B - Homelessness Landlord Payments,Housing
Swale Borough Council,29UM,23/01/2019,1164976,378.00,LILAC ESTATES,                         ,HOUSING SERVICES,B & B - Homelessness Landlord Payments,Housing
Swale Borough Council,29UM,23/01/2019,1164977,378.00,LILAC ESTATES,                         ,HOUSING SERVICES,B & B - Homelessness Landlord Payments,Housing
Swale Borough Council,29UM,23/01/2019,1164650,30474.00,LINK PROPERTY GROUP,                         ,HOUSING SERVICES,NL (Nightly Lets) - Homelessness Landlord Payments,Housing
Swale Borough Council,29UM,23/01/2019,1164913,1288.66,LLOYDS BANK - (DT),                         ,FINANCIAL SERVICES,Bank Charges,Corporate & Democratic Core
Swale Borough Council,29UM,23/01/2019,1165109,837086.00,MAIDSTONE BOROUGH COUNCIL - DT,                         ,FINANCIAL SERVICES,Tariff to Gvt,Taxation and Non-Specific Grant Income
Swale Borough Council,29UM,23/01/2019,1165014,964.00,MAYLOW CONSTRUCTION LTD,                         ,LEISURE & OPEN SPACES,Maintenance - Grounds,Cultural and Related Services
Swale Borough Council,29UM,23/01/2019,1165016,2688.00,MAYLOW CONSTRUCTION LTD,                         ,LEISURE & OPEN SPACES,Maintenance - Grounds,Cultural and Related Services
Swale Borough Council,29UM,23/01/2019,1164983,1822.00,MEDWAY GALVANISING CO LTD,01808205                 ,LEISURE & OPEN SPACES,Construction,Not used in this Structure
Swale Borough Council,29UM,23/01/2019,1164984,789.50,MEDWAY GALVANISING CO LTD,01808205                 ,LEISURE & OPEN SPACES,Equipment Purchase,Cultural and Related Services
Swale Borough Council,29UM,23/01/2019,1164960,300.00,MILTON COURT PRIMARY ACADEMY,                         ,ECONOMY & COMMUNITIES,Grants & Subscriptions,Central Services to the Public
Swale Borough Council,29UM,23/01/2019,1165049,2000.00,REDACTED PERSONAL INFORMATION,                         ,DIRECTOR OF CORPORATE SERVICES,Legal Fees,Corporate & Democratic Core
Swale Borough Council,29UM,23/01/2019,1165049,400.00,REDACTED PERSONAL INFORMATION,                         ,DIRECTOR OF CORPORATE SERVICES,Legal Fees,Corporate & Democratic Core
Swale Borough Council,29UM,23/01/2019,1164994,675.00,MR J W GATES,                         ,LEISURE & OPEN SPACES,Maintenance - Grounds,Cultural and Related Services
Swale Borough Council,29UM,23/01/2019,1164994,225.00,MR J W GATES,                         ,LEISURE & OPEN SPACES,Maintenance - Grounds,Cultural and Related Services
Swale Borough Council,29UM,23/01/2019,1164994,59.62,MR J W GATES,                         ,LEISURE & OPEN SPACES,Maintenance - Grounds,Cultural and Related Services
Swale Borough Council,29UM,23/01/2019,1164994,150.00,MR J W GATES,                         ,LEISURE & OPEN SPACES,Maintenance - Grounds,Cultural and Related Services
Swale Borough Council,29UM,23/01/2019,1164904,476.00,NAGELS UK LIMITED,3695705                  ,CAR PARKS,Car Park Machine Tickets,Highway and Transport Services
Swale Borough Council,29UM,23/01/2019,1164909,1500.00,OASIS ACADEMY ISLE OF SHEPPEY,                         ,ECONOMY & COMMUNITIES,Grants & Subscriptions,Central Services to the Public
Swale Borough Council,29UM,23/01/2019,1164718,36625.00,PARAMOUNT INDEPENDENT PROPERTY SERVICES,                         ,HOUSING SERVICES,NL (Nightly Lets) - Homelessness Landlord Payments,Housing
Swale Borough Council,29UM,23/01/2019,1165126,15697.00,PEAC HOLDINGS (UK) LTD (DT),3088213                  ,LEISURE & OPEN SPACES,Contracts,Cultural and Related Services
Swale Borough Council,29UM,23/01/2019,1164882,820.00,PHLORUM LTD,04967256                 ,PLANNING SERVICES,Consultancy/Specialist Advice,Internal Trading Cost Centres
Swale Borough Council,29UM,23/01/2019,1164911,1000.00,QUEENBOROUGH BOWLS CLUB,                         ,TOURISM & SPORTS DEVELOPMENT,Grants & Subscriptions,Cultural and Related Services
Swale Borough Council,29UM,23/01/2019,1164925,1000.00,RAYBEL CHARTERS CIC,                         ,TOURISM & SPORTS DEVELOPMENT,Grants & Subscriptions,Cultural and Related Services
Swale Borough Council,29UM,23/01/2019,1165116,9.98,RBS PURCHASING CARD (DT) - AMAZON,,DEMOCRATIC & ELECTORAL SERVICES,Stationery,Internal Trading Cost Centres
Swale Borough Council,29UM,23/01/2019,1165116,33.98,RBS PURCHASING CARD (DT) - MORRISONS,,DEMOCRATIC & ELECTORAL SERVICES,Hospitality Allowance - Mayor,Corporate & Democratic Core
Swale Borough Council,29UM,23/01/2019,1165116,18.30,RBS PURCHASING CARD (DT) - SAINSBURY'S,,DEMOCRATIC & ELECTORAL SERVICES,Hospitality Allowance - Mayor,Corporate & Democratic Core
Swale Borough Council,29UM,23/01/2019,1165117,7.99,RBS PURCHASING CARD (DT) - WH SMITH,,TOURISM & SPORTS DEVELOPMENT,Stationery,Internal Trading Cost Centres
Swale Borough Council,29UM,23/01/2019,1165118,39.26,RBS PURCHASING CARD (DT) - AMAZON,,PROPERTY SERVICES,Equipment Purchase,Internal Trading Cost Centres
Swale Borough Council,29UM,23/01/2019,1165118,12.08,RBS PURCHASING CARD (DT) - STATIONERY OFFICE,,PROPERTY SERVICES,"Books, Journals & e - resources",Management & Support Services
Swale Borough Council,29UM,23/01/2019,1165119,160.65,RBS PURCHASING CARD (DT) - AMAZON,                         ,COMMUNICATIONS,Advertising & Promotion,Internal Trading Cost Centres
Swale Borough Council,29UM,23/01/2019,1165119,197.18,RBS PURCHASING CARD (DT) - AMAZON,                         ,COMMUNICATIONS,Advertising & Promotion,Internal Trading Cost Centres
Swale Borough Council,29UM,23/01/2019,1165119,38.00,RBS PURCHASING CARD (DT) - AMAZON,                         ,COMMUNICATIONS,Advertising & Promotion,Internal Trading Cost Centres
Swale Borough Council,29UM,23/01/2019,1165119,7.00,RBS PURCHASING CARD (DT) - SAINSBURY'S,                         ,DIRECTOR OF CORPORATE SERVICES,Catering Provisions,Internal Trading Cost Centres
Swale Borough Council,29UM,23/01/2019,1165120,100.00,RBS PURCHASING CARD (DT) - EVENT BRITE,,EMERGENCY PLANNING,Training - Courses,Emergency Planning
Swale Borough Council,29UM,23/01/2019,1165120,294.54,RBS PURCHASING CARD (DT) - PREMIER INN,,HUMAN RESOURCES,Training - Courses,Management & Support Services
Swale Borough Council,29UM,23/01/2019,1165120,4.00,RBS PURCHASING CARD (DT) - ICELAND,                         ,DIRECTOR OF REGENERATION,Catering Provisions,Internal Trading Cost Centres
Swale Borough Council,29UM,23/01/2019,1165121,110.50,RBS PURCHASING CARD (DT) - PREMIER INN,,HOUSING SERVICES,B & B - Homelessness Landlord Payments,Housing
Swale Borough Council,29UM,23/01/2019,1165121,10.45,RBS PURCHASING CARD (DT) - SITTINGBOURNE SHOES,,HOUSING SERVICES,General Maintenance,Housing
Swale Borough Council,29UM,23/01/2019,1165122,385.00,RBS PURCHASING CARD (DT) - INCISIVE MEDIA,                         ,POLICY,Grants & Subscriptions,Environmental and Regulatory Services
Swale Borough Council,29UM,23/01/2019,1165122,13.19,RBS PURCHASING CARD (DT) - AMAZON,                         ,CHIEF EXECUTIVE,Equipment Purchase,Corporate & Democratic Core
Swale Borough Council,29UM,23/01/2019,1165122,25.00,RBS PURCHASING CARD (DT) - GREGGS,                         ,CHIEF EXECUTIVE,Catering Provisions,Corporate & Democratic Core
Swale Borough Council,29UM,23/01/2019,1165122,29.12,RBS PURCHASING CARD (DT) - COSTCUTTER,                         ,CHIEF EXECUTIVE,Catering Provisions,Corporate & Democratic Core
Swale Borough Council,29UM,23/01/2019,1165122,20.34,RBS PURCHASING CARD (DT) - MCDONALDS,                         ,CHIEF EXECUTIVE,Catering Provisions,Corporate & Democratic Core
Swale Borough Council,29UM,23/01/2019,1165122,55.00,RBS PURCHASING CARD (DT) - ICELAND,                         ,CHIEF EXECUTIVE,Catering Provisions,Corporate & Democratic Core
Swale Borough Council,29UM,23/01/2019,1165122,33.80,RBS PURCHASING CARD (DT) - ALDI,                         ,CHIEF EXECUTIVE,Catering Provisions,Corporate & Democratic Core
Swale Borough Council,29UM,23/01/2019,1165122,9.98,RBS PURCHASING CARD (DT) - ALDI,                         ,CHIEF EXECUTIVE,Catering Provisions,Corporate & Democratic Core
Swale Borough Council,29UM,23/01/2019,1165123,16.90,RBS PURCHASING CARD (DT) - WILKO,,HOUSING SERVICES,Staying Put - Materials,Housing
Swale Borough Council,29UM,23/01/2019,1165124,629.40,RBS PURCHASING CARD (DT) - EVENTUS,,MKS LEGAL SERVICES,Training - Courses,Internal Trading Cost Centres
Swale Borough Council,29UM,23/01/2019,1165124,47.90,RBS PURCHASING CARD (DT) - BAILEY'S,                         ,MKS LEGAL SERVICES,Catering Provisions,Internal Trading Cost Centres
Swale Borough Council,29UM,23/01/2019,1165124,80.50,RBS PURCHASING CARD (DT) - MARKS & SPENSER,                         ,MKS LEGAL SERVICES,Catering Provisions,Internal Trading Cost Centres
Swale Borough Council,29UM,23/01/2019,1165124,20.80,RBS PURCHASING CARD (DT) - MARKS & SPENSER,                         ,MKS LEGAL SERVICES,Catering Provisions,Internal Trading Cost Centres
Swale Borough Council,29UM,23/01/2019,1165124,10.09,RBS PURCHASING CARD (DT) - POUNDLAND,                         ,MKS LEGAL SERVICES,Catering Provisions,Internal Trading Cost Centres
Swale Borough Council,29UM,23/01/2019,1165124,13.53,RBS PURCHASING CARD (DT) - AMAZON,                         ,MKS LEGAL SERVICES,Stationery,Internal Trading Cost Centres
Swale Borough Council,29UM,23/01/2019,1165124,19.80,RBS PURCHASING CARD (DT) - WH SMITH,                         ,MKS LEGAL SERVICES,Stationery,Internal Trading Cost Centres
Swale Borough Council,29UM,23/01/2019,1165125,16.66,RBS PURCHASING CARD (DT) - AMAZON,,LEISURE & OPEN SPACES,Stationery,Internal Trading Cost Centres
Swale Borough Council,29UM,23/01/2019,1164986,2072.00,REARDON PROPERTIES,                         ,HOUSING SERVICES,NL (Nightly Lets) - Homelessness Landlord Payments,Housing
Swale Borough Council,29UM,23/01/2019,1164799,311.70,SCOTTISH WATER BUSINESS STREAM LTD,SC294924                 ,CONTRACT & PROCUREMENT,Water - Metered,Environmental and Regulatory Services
Swale Borough Council,29UM,23/01/2019,1164927,91987.50,SERCO LEISURE OPERATING LIMITED,04687478                 ,LEISURE & OPEN SPACES,Construction,Not used in this Structure
Swale Borough Council,29UM,23/01/2019,1164928,130852.00,SERCO LEISURE OPERATING LIMITED,04687478                 ,LEISURE & OPEN SPACES,Construction,Not used in this Structure
Swale Borough Council,29UM,23/01/2019,1165127,2968.00,SERCO PAISA LTD - (DT),04908482                 ,LEISURE & OPEN SPACES,Contracts,Cultural and Related Services
Swale Borough Council,29UM,23/01/2019,1164910,400.00,SHEERNESS TOWN TEAM,                         ,ECONOMY & COMMUNITIES,Grants & Subscriptions,Central Services to the Public
Swale Borough Council,29UM,23/01/2019,1165005,950.00,SHEPPEY DISTRICT SCOUTS,                         ,ECONOMY & COMMUNITIES,Grants & Subscriptions,Central Services to the Public
Swale Borough Council,29UM,23/01/2019,1164926,1000.00,SHEPPEY LOCAL HISTORY SOCIETY,                         ,TOURISM & SPORTS DEVELOPMENT,Grants & Subscriptions,Cultural and Related Services
Swale Borough Council,29UM,23/01/2019,1164961,300.00,SHEPPEY MATTERS,3946296                  ,ECONOMY & COMMUNITIES,Grants & Subscriptions,Central Services to the Public
Swale Borough Council,29UM,23/01/2019,1164987,1510.00,SMARTWATER TECHNOLOGY LTD,                         ,COMMUNITY SAFETY,Fees and Services,Planning and Development Services
Swale Borough Council,29UM,23/01/2019,1164743,362.31,SOUTHERN COMMUNICATIONS LTD,1328040                  ,MKS ICT,Telephone,Corporate & Democratic Core
Swale Borough Council,29UM,23/01/2019,1164912,1300.00,SWAMPYS ANIMAL RESCUE,                         ,ECONOMY & COMMUNITIES,Grants & Subscriptions,Central Services to the Public
Swale Borough Council,29UM,23/01/2019,1164990,2845.00,TAKE ONE MEDIA LTD,04018955                 ,TOURISM & SPORTS DEVELOPMENT,Fees and Services,Cultural and Related Services
Swale Borough Council,29UM,23/01/2019,1164923,500.00,TEYNHAM CARNIVAL ASSOCIATION,                         ,ECONOMY & COMMUNITIES,Grants & Subscriptions,Central Services to the Public
Swale Borough Council,29UM,23/01/2019,1165004,472.00,TEYNHAM COMMUNITY PRE-SCHOOL,                         ,ECONOMY & COMMUNITIES,Grants & Subscriptions,Central Services to the Public
Swale Borough Council,29UM,23/01/2019,1164972,1694.00,THE OYSTER PARTNERSHIP,05020374                 ,PLANNING SERVICES,Agency/Contract Staff,Planning and Development Services
Swale Borough Council,29UM,23/01/2019,1165017,4000.00,TROWERS & HAMLIN,OC337852                 ,LEISURE & OPEN SPACES,Consultancy/Specialist Advice,Cultural and Related Services
Swale Borough Council,29UM,23/01/2019,1165000,1370.25,VIVID RESOURCING LIMITED,06459262                 ,PLANNING SERVICES,Agency/Contract Staff,Internal Trading Cost Centres
Swale Borough Council,29UM,23/01/2019,1164872,425.47,VR SANI-CO LTD,3588359                  ,CONTRACT & PROCUREMENT,Hygiene Service Contracts,Environmental and Regulatory Services
Swale Borough Council,29UM,23/01/2019,1164930,375.00,WEST FAVERSHAM COMMUNITY ASSOCIATION,                         ,DEMOCRATIC & ELECTORAL SERVICES,Hire Of Premises,Central Services to the Public
Swale Borough Council,29UM,23/01/2019,1164770,304.76,WHISTL UK LIMITED,04417047                 ,REVENUE SERVICES,Postage,Central Services to the Public
Swale Borough Council,29UM,23/01/2019,1164770,152.37,WHISTL UK LIMITED,04417047                 ,REVENUE SERVICES,Postage,Housing
Swale Borough Council,29UM,23/01/2019,1164770,15.06,WHISTL UK LIMITED,04417047                 ,CAR PARKS,Postage,Internal Trading Cost Centres
Swale Borough Council,29UM,23/01/2019,1164770,91.89,WHISTL UK LIMITED,04417047                 ,PROPERTY SERVICES,Postage,Holding Codes
Swale Borough Council,29UM,23/01/2019,1164770,172.27,WHISTL UK LIMITED,04417047                 ,DEMOCRATIC & ELECTORAL SERVICES,Postage,Central Services to the Public
Swale Borough Council,29UM,23/01/2019,1165015,1380.00,WILLOW TREE HOME SOLUTIONS LTD,                         ,HOUSING SERVICES,Staying Put small repairs (contractors),Housing
Swale Borough Council,29UM,23/01/2019,1165112,1792.77,WORLDPAY (DT),07316500                 ,REVENUE SERVICES,Commission Paid,Central Services to the Public
Swale Borough Council,29UM,23/01/2019,1165112,110.66,WORLDPAY (DT),07316500                 ,REVENUE SERVICES,Commission Paid,Central Services to the Public
Swale Borough Council,29UM,23/01/2019,1165112,22.13,WORLDPAY (DT),07316500                 ,REVENUE SERVICES,Commission Paid,Housing
Swale Borough Council,29UM,23/01/2019,1165112,22.13,WORLDPAY (DT),07316500                 ,EXCHEQUER,Commission Paid,Internal Trading Cost Centres
Swale Borough Council,29UM,23/01/2019,1165112,316.08,WORLDPAY (DT),07316500                 ,EXCHEQUER,Commission Paid,Internal Trading Cost Centres
Swale Borough Council,29UM,23/01/2019,1165112,2.37,WORLDPAY (DT),07316500                 ,EXCHEQUER,Commission Paid,Internal Trading Cost Centres
Swale Borough Council,29UM,23/01/2019,1165114,1582.38,WORLDPAY (DT),07316500                 ,REVENUE SERVICES,Commission Paid,Central Services to the Public
Swale Borough Council,29UM,23/01/2019,1165114,47.07,WORLDPAY (DT),07316500                 ,REVENUE SERVICES,Commission Paid,Central Services to the Public
Swale Borough Council,29UM,23/01/2019,1165114,9.41,WORLDPAY (DT),07316500                 ,EXCHEQUER,Commission Paid,Internal Trading Cost Centres
Swale Borough Council,29UM,23/01/2019,1165114,244.79,WORLDPAY (DT),07316500                 ,EXCHEQUER,Commission Paid,Internal Trading Cost Centres
Swale Borough Council,29UM,23/01/2019,1165114,2.27,WORLDPAY (DT),07316500                 ,EXCHEQUER,Commission Paid,Internal Trading Cost Centres
Swale Borough Council,29UM,30/01/2019,1165249,825.00,ACORN MAINTENANCE SERVICES,3546898                  ,HOUSING SERVICES,Housing Renovation Grants,Not used in this Structure
Swale Borough Council,29UM,30/01/2019,1165250,6948.08,ACORN MAINTENANCE SERVICES,3546898                  ,HOUSING SERVICES,Housing Renovation Grants,Not used in this Structure
Swale Borough Council,29UM,30/01/2019,1165254,2340.00,ASCENDIT LIFTS LTD,3493530                  ,HOUSING SERVICES,Housing Renovation Grants,Not used in this Structure
Swale Borough Council,29UM,30/01/2019,1165153,575.00,BATES JPW ADVERTISING LTD,784540                   ,PLANNING SERVICES,Recruitment Adverts - Staff,Internal Trading Cost Centres
Swale Borough Council,29UM,30/01/2019,1165154,11392.00,BATES JPW ADVERTISING LTD,784540                   ,PLANNING SERVICES,Recruitment Adverts - Staff,Internal Trading Cost Centres
Swale Borough Council,29UM,30/01/2019,1165022,3390.81,BLENWOOD LTD,4383277                  ,LEISURE & OPEN SPACES,Maintenance - Grounds Contract,Cultural and Related Services
Swale Borough Council,29UM,30/01/2019,1165026,1635.15,BLENWOOD LTD,4383277                  ,LEISURE & OPEN SPACES,Tree Maintenance,Cultural and Related Services
Swale Borough Council,29UM,30/01/2019,1165056,6590.00,BMR CONSTRUCTION LTD,08434080                 ,COMMUNITY SAFETY,Capitalised Fees And Charges,Not used in this Structure
Swale Borough Council,29UM,30/01/2019,1165222,1000.00,BORDEN FETE COMMITTEE,                         ,TOURISM & SPORTS DEVELOPMENT,Grants & Subscriptions,Cultural and Related Services
Swale Borough Council,29UM,30/01/2019,1165202,3252.31,BROADWAY ESTATES,                         ,REVENUE SERVICES,KCC Relocation Scheme - Expenditure,Housing
Swale Borough Council,29UM,30/01/2019,1165190,500.00,BROCHURE CONNECT LTD,05638926                 ,TOURISM & SPORTS DEVELOPMENT,Fees and Services,Cultural and Related Services
Swale Borough Council,29UM,30/01/2019,1165172,3319.68,CITY OF LONDON,                         ,MKS ENVIRONMENTAL SERVICES,Sampling / Monitoring,Environmental and Regulatory Services
Swale Borough Council,29UM,30/01/2019,1165087,5717.50,CIVICA UK LIMITED,1628868                  ,REVENUE SERVICES,Computer Equipment & Materials,Central Services to the Public
Swale Borough Council,29UM,30/01/2019,1165087,5717.50,CIVICA UK LIMITED,1628868                  ,REVENUE SERVICES,Computer Equipment & Materials,Housing
Swale Borough Council,29UM,30/01/2019,1165257,6425.75,COLDWELL CONSTRUCTION LTD,4814340                  ,HOUSING SERVICES,Housing Renovation Grants,Not used in this Structure
Swale Borough Council,29UM,30/01/2019,1165209,634.13,DARTFORD BOROUGH COUNCIL,                         ,CHIEF EXECUTIVE,Kent & Medway Chief Execs - Forum Support,Internal Trading Cost Centres
Swale Borough Council,29UM,30/01/2019,1165255,637.47,DAYTRAD LIMITED,7654373                  ,HOUSING SERVICES,Housing Renovation Grants,Not used in this Structure
Swale Borough Council,29UM,30/01/2019,1165256,2874.92,DAYTRAD LIMITED,7654373                  ,HOUSING SERVICES,Housing Renovation Grants,Not used in this Structure
Swale Borough Council,29UM,30/01/2019,1165156,250.00,DEMELZA HOSPICE CARE FOR CHILDREN,02948500                 ,ECONOMY & COMMUNITIES,Grants & Subscriptions,Central Services to the Public
Swale Borough Council,29UM,30/01/2019,1165091,2458.75,DHA PLANNING,2683290                  ,PROPERTY SERVICES,Consultancy/Specialist Advice,Internal Trading Cost Centres
Swale Borough Council,29UM,30/01/2019,1165223,1000.00,FAVERSHAM TOWN COUNCIL,                         ,TOURISM & SPORTS DEVELOPMENT,Grants & Subscriptions,Cultural and Related Services
Swale Borough Council,29UM,30/01/2019,1165186,1215.00,GATES RAILINGS LTD,10805179                 ,LEISURE & OPEN SPACES,Buildings Maintenance,Environmental and Regulatory Services
Swale Borough Council,29UM,30/01/2019,1165193,265.00,GATES RAILINGS LTD,10805179                 ,LEISURE & OPEN SPACES,Buildings Maintenance,Environmental and Regulatory Services
Swale Borough Council,29UM,30/01/2019,1165132,517.50,GEN2 PROPERTY LIMITED,09834851                 ,PROPERTY SERVICES,Consultancy/Specialist Advice,Internal Trading Cost Centres
Swale Borough Council,29UM,30/01/2019,1165139,882.00,GLASDON U.K.LIMITED,2160576                  ,LEISURE & OPEN SPACES,Construction,Not used in this Structure
Swale Borough Council,29UM,30/01/2019,1165251,7202.16,HUBBARD & HOUGHTON CONSTRUCTION LTD,                         ,HOUSING SERVICES,Housing Renovation Grants,Not used in this Structure
Swale Borough Council,29UM,30/01/2019,1165252,4425.00,HUBBARD & HOUGHTON CONSTRUCTION LTD,                         ,HOUSING SERVICES,Housing Renovation Grants,Not used in this Structure
Swale Borough Council,29UM,30/01/2019,1165253,750.00,HUBBARD & HOUGHTON LTD,                         ,HOUSING SERVICES,Housing Renovation Grants,Not used in this Structure
Swale Borough Council,29UM,30/01/2019,1165074,950.32,INVICTA VOLLEYBALL LIMITED,                         ,TOURISM & SPORTS DEVELOPMENT,Grants & Subscriptions,Cultural and Related Services
Swale Borough Council,29UM,30/01/2019,1164712,300.00,J N CLEARANCE,                         ,CONTRACT & PROCUREMENT,"Clearance Of Sites,Tyres Etc",Environmental and Regulatory Services
Swale Borough Council,29UM,30/01/2019,1165260,100.00,J N CLEARANCE,                         ,CONTRACT & PROCUREMENT,Equipment Maintenance,Environmental and Regulatory Services
Swale Borough Council,29UM,30/01/2019,1165260,850.00,J N CLEARANCE,                         ,CONTRACT & PROCUREMENT,"Clearance Of Waste,Fly Tipping",Environmental and Regulatory Services
Swale Borough Council,29UM,30/01/2019,1165260,775.00,J N CLEARANCE,                         ,CONTRACT & PROCUREMENT,Private Contractors,Environmental and Regulatory Services
Swale Borough Council,29UM,30/01/2019,1165192,435.00,KEEP BRITAIN TIDY,                         ,LEISURE & OPEN SPACES,Fees and Services,Cultural and Related Services
Swale Borough Council,29UM,30/01/2019,1165160,597.00,KENT POLICE MUSEUM,                         ,TOURISM & SPORTS DEVELOPMENT,Grants & Subscriptions,Cultural and Related Services
Swale Borough Council,29UM,30/01/2019,1165151,500.00,LANDMARK CHAMBERS,                         ,PLANNING SERVICES,Legal Fees,Planning and Development Services
Swale Borough Council,29UM,30/01/2019,1164142,-463.48,LEXISNEXIS UK,2746621                  ,MKS LEGAL SERVICES,"Books, Journals & e - resources",Internal Trading Cost Centres
Swale Borough Council,29UM,30/01/2019,1164142,-443.49,LEXISNEXIS UK,2746621                  ,MKS LEGAL SERVICES,"Books, Journals & e - resources",Internal Trading Cost Centres
Swale Borough Council,29UM,30/01/2019,1164835,2166.64,LEXISNEXIS UK,2746621                  ,MKS LEGAL SERVICES,"Books, Journals & e - resources",Internal Trading Cost Centres
Swale Borough Council,29UM,30/01/2019,1164835,38.80,LEXISNEXIS UK,2746621                  ,MKS LEGAL SERVICES,"Books, Journals & e - resources",Internal Trading Cost Centres
Swale Borough Council,29UM,30/01/2019,1164933,420.00,MAIDSTONE BOROUGH COUNCIL,                         ,PLANNING SERVICES,Computer Equipment & Materials,Internal Trading Cost Centres
Swale Borough Council,29UM,30/01/2019,1164933,40.15,MAIDSTONE BOROUGH COUNCIL,                         ,MKS ICT,Computer Equipment & Materials,Internal Trading Cost Centres
Swale Borough Council,29UM,30/01/2019,1164933,390.20,MAIDSTONE BOROUGH COUNCIL,                         ,MKS ICT,Equipment Rental,Holding Codes
Swale Borough Council,29UM,30/01/2019,1165027,1297.00,METROSIGNS 2000 (BEDFORD) LTD,4597343                  ,LEISURE & OPEN SPACES,Maintenance - Grounds,Cultural and Related Services
Swale Borough Council,29UM,30/01/2019,1165188,491.93,MPS MARKETING SERVICES LIMITED,6360656                  ,DEMOCRATIC & ELECTORAL SERVICES,Fees and Services,Central Services to the Public
Swale Borough Council,29UM,30/01/2019,1165224,751.20,NEWINGTON PARISH COUNCIL,                         ,TOURISM & SPORTS DEVELOPMENT,Grants & Subscriptions,Cultural and Related Services
Swale Borough Council,29UM,30/01/2019,1165044,3204.00,NHTB CONSULTANCY LTD,07428375                 ,LEISURE & OPEN SPACES,Consultancy/Specialist Advice,Cultural and Related Services
Swale Borough Council,29UM,30/01/2019,1165179,259.34,PESTFIX LTD,07868403                 ,SERVICE DELIVERY,Private Contractors - CIS,Environmental and Regulatory Services
Swale Borough Council,29UM,30/01/2019,1165138,870.00,PREMIER TECHNICAL SERVICES GROUP,03233894                 ,PROPERTY SERVICES,Service Contracts,Corporate & Democratic Core
Swale Borough Council,29UM,30/01/2019,1165070,1534.76,PRIME ONE MAINTENANCE LIMITED,08959939                 ,ECONOMY & COMMUNITIES,Communities Fund Expenditure,Ledger/Suspense Codes
Swale Borough Council,29UM,30/01/2019,1165029,25000.00,SERCO LEISURE OPERATING LIMITED,04687478                 ,LEISURE & OPEN SPACES,Construction,Not used in this Structure
Swale Borough Council,29UM,30/01/2019,1165094,2650.18,SHARP BUSINESS SYSTEMS UK,2136901                  ,MKS ICT,Equipment Rental,Holding Codes
Swale Borough Council,29UM,30/01/2019,1165095,6114.19,SHARP BUSINESS SYSTEMS UK,2136901                  ,MKS ICT,Equipment Rental,Holding Codes
Swale Borough Council,29UM,30/01/2019,1165173,1250.00,SITTINGBOURNE COMMUNITY RADIO,                         ,ECONOMY & COMMUNITIES,Grants & Subscriptions,Central Services to the Public
Swale Borough Council,29UM,30/01/2019,1165258,7374.30,SOUTH EAST BUILDING CO LTD,1786838                  ,HOUSING SERVICES,Housing Renovation Grants,Not used in this Structure
Swale Borough Council,29UM,30/01/2019,1165161,578.00,ST PETER & ST PAULS CHURCH,                         ,ECONOMY & COMMUNITIES,Grants & Subscriptions,Central Services to the Public
Swale Borough Council,29UM,30/01/2019,1165077,400.00,STALISFIELD PARISH COUNCIL,                         ,ECONOMY & COMMUNITIES,Grants & Subscriptions,Central Services to the Public
Swale Borough Council,29UM,30/01/2019,1165158,1000.00,SWALE MARTIAL ARTS CLUB,                         ,TOURISM & SPORTS DEVELOPMENT,Grants & Subscriptions,Cultural and Related Services
Swale Borough Council,29UM,30/01/2019,1165057,1525.00,TAYLOR BROTHERS LTD,                         ,LEISURE & OPEN SPACES,Maintenance - Grounds,Cultural and Related Services
Swale Borough Council,29UM,30/01/2019,1165226,1298.00,TCD DESIGN AND PRINT LIMITED,9119406                  ,TOURISM & SPORTS DEVELOPMENT,Fees and Services,Cultural and Related Services
Swale Borough Council,29UM,30/01/2019,1165226,2998.00,TCD DESIGN AND PRINT LIMITED,9119406                  ,TOURISM & SPORTS DEVELOPMENT,Printing - External Funded by Grant & Other Income,Cultural and Related Services
Swale Borough Council,29UM,30/01/2019,1165226,185.00,TCD DESIGN AND PRINT LIMITED,9119406                  ,TOURISM & SPORTS DEVELOPMENT,Fees and Services,Cultural and Related Services
Swale Borough Council,29UM,30/01/2019,1165248,833.33,THE APPLEYARD,                         ,CHIEF EXECUTIVE,Catering Provisions,Corporate & Democratic Core
Swale Borough Council,29UM,30/01/2019,1165162,450.00,THE FAMILY FOOD BANK,                         ,ECONOMY & COMMUNITIES,Grants & Subscriptions,Central Services to the Public
Swale Borough Council,29UM,30/01/2019,1165134,1738.00,THE OYSTER PARTNERSHIP,05020374                 ,PLANNING SERVICES,Agency/Contract Staff,Planning and Development Services
Swale Borough Council,29UM,30/01/2019,1165225,1923.60,UK POWER NETWORKS (OPERATIONS) LTD,3870728                  ,CONTRACT & PROCUREMENT,Buildings Maintenance,Environmental and Regulatory Services
Swale Borough Council,29UM,30/01/2019,1165164,1609.50,VIVID RESOURCING LIMITED,06459262                 ,PLANNING SERVICES,Agency/Contract Staff,Internal Trading Cost Centres
Swale Borough Council,29UM,30/01/2019,1164871,23.84,VR SANI-CO LTD,3588359                  ,LEISURE & OPEN SPACES,Service Contracts,Cultural and Related Services
Swale Borough Council,29UM,30/01/2019,1164871,12.50,VR SANI-CO LTD,3588359                  ,LEISURE & OPEN SPACES,Service Contracts,Cultural and Related Services
Swale Borough Council,29UM,30/01/2019,1164871,28.17,VR SANI-CO LTD,3588359                  ,LEISURE & OPEN SPACES,Service Contracts,Cultural and Related Services
Swale Borough Council,29UM,30/01/2019,1164871,26.07,VR SANI-CO LTD,3588359                  ,LEISURE & OPEN SPACES,Service Contracts,Cultural and Related Services
Swale Borough Council,29UM,30/01/2019,1164871,35.76,VR SANI-CO LTD,3588359                  ,PROPERTY SERVICES,Service Contracts,Cultural and Related Services
Swale Borough Council,29UM,30/01/2019,1164871,5.96,VR SANI-CO LTD,3588359                  ,PROPERTY SERVICES,Service Contracts,Cultural and Related Services
Swale Borough Council,29UM,30/01/2019,1164871,214.56,VR SANI-CO LTD,3588359                  ,PROPERTY SERVICES,Service Contracts,Corporate & Democratic Core
Swale Borough Council,29UM,30/01/2019,1164871,50.00,VR SANI-CO LTD,3588359                  ,PROPERTY SERVICES,Service Contracts,Corporate & Democratic Core
Swale Borough Council,29UM,30/01/2019,1164871,14.08,VR SANI-CO LTD,3588359                  ,PROPERTY SERVICES,Service Contracts,Corporate & Democratic Core
Swale Borough Council,29UM,30/01/2019,1164871,26.00,VR SANI-CO LTD,3588359                  ,PROPERTY SERVICES,Service Contracts,Corporate & Democratic Core
Swale Borough Council,29UM,30/01/2019,1165031,570.00,WEALD WOODSCAPES LTD,8028446                  ,LEISURE & OPEN SPACES,Maintenance - Grounds,Cultural and Related Services
Swale Borough Council,29UM,30/01/2019,1164921,1167.44,WHISTL UK LIMITED,04417047                 ,REVENUE SERVICES,Postage,Central Services to the Public
Swale Borough Council,29UM,30/01/2019,1164921,583.72,WHISTL UK LIMITED,04417047                 ,REVENUE SERVICES,Postage,Housing
Swale Borough Council,29UM,30/01/2019,1164921,9.10,WHISTL UK LIMITED,04417047                 ,CAR PARKS,Postage,Internal Trading Cost Centres
Swale Borough Council,29UM,30/01/2019,1164921,174.31,WHISTL UK LIMITED,04417047                 ,PROPERTY SERVICES,Postage,Holding Codes
Swale Borough Council,29UM,30/01/2019,1164921,803.68,WHISTL UK LIMITED,04417047                 ,DEMOCRATIC & ELECTORAL SERVICES,Postage,Central Services to the Public
Swale Borough Council,29UM,30/01/2019,1165175,250.00,WILLIAM LEWIS,                         ,TOURISM & SPORTS DEVELOPMENT,Grants & Subscriptions,Cultural and Related Services
Swale Borough Council,29UM,30/01/2019,1165205,325.00,WILLOW PUMPS LTD,2762063                  ,LEISURE & OPEN SPACES,Maintenance - Grounds,Cultural and Related Services
Swale Borough Council,29UM,30/01/2019,1165045,396.00,WILLOW TREE HOME SOLUTIONS LTD,                         ,HOUSING SERVICES,Staying Put small repairs (contractors),Housing
